Workbook

Sheet Παρακολούθηση βαθμολογίας
B1: Πληκτρολογήστε τις βαθμολογίες σας εδώ
C3: Μάθημα | D3: Τύπος | E3: Περιγραφή | F3: Βαθμολογία
C4: Γαλλικά | D4: Εργασία για το σπίτι | E4: Ιστορία 2ου ΠΠ | F4: 80%
C5: Προχωρημένος προγραμματισμός σε Java | D5: Εξάμηνο | F5: 75%
C6: Ισπανικά | D6: Εργασία για το σπίτι | F6: 50%
C7: Θεωρητική Φυσική | D7: Εργασία για το σπίτι | F7: 95%
C8: Γαλλικά | D8: Εργασία για το σπίτι | E8: Ιστορία 1ου ΠΠ | F8: 90%
C9: Γαλλικά | D9: Εργασία για το σπίτι | E9: Σελίδες 30 - 41 | F9: 80%
C10: Έκθεση | D10: Εργασία | E10: Πραγματεία | F10: 95%
C11: Μαθηματικά 1 | D11: Εργασία για το σπίτι | E11: Σελίδες 21 και 26 | F11: 80%
C12: Μαθηματικά 2 | D12: Εργασία για το σπίτι | E12: Σελίδες 15 και 18 | F12: 85%
C13: Μαθηματικά 1 | D13: Εργασία για το σπίτι | E13: Σελίδες 34 - 36 | F13: 80%
C14: Μαθηματικά 2 | D14: Διαγώνισμα | F14: 95%

Sheet Οι επιδόσεις σας
B1: Οι επιδόσεις σας
C3: Σύνολα
C4: ="Ώρες: "&SUM(tblClasses[Ώρες παρακολούθησης]) -> Ώρες: 24 | D4: =AVERAGE(D7:D31) -> 81% | E4: =AVERAGE(E7:E31) -> 2.71 | F4: =SUM(F7:F31) -> 2.63 | G4: =IFERROR(HLOOKUP(D4,lstGPAMapping,2),"") -> B-
C6: Μαθήματα | D6: % | E6: Μέσος όρος | F6: Σταθμ. μέσος όρος | G6: Γράμμα | H6: Συνολική επίδοση
C7: =Υπολογισμοί!C6 -> Γαλλικά | D7: =Υπολογισμοί!AL6 -> 83% | E7: =Υπολογισμοί!AM6 -> 3.00 | F7: =IFERROR(E7*Ρυθμίσεις!D9/SUM(tblClasses[Ώρες παρακολούθησης]),"") -> 0.38 | G7: =Υπολογισμοί!AN6 -> B
C8: =Υπολογισμοί!C7 -> Θεωρητική Φυσική | D8: =Υπολογισμοί!AL7 -> 95% | E8: =Υπολογισμοί!AM7 -> 4.00 | F8: =IFERROR(E8*Ρυθμίσεις!D10/SUM(tblClasses[Ώρες παρακολούθησης]),"") -> 0.50 | G8: =Υπολογισμοί!AN7 -> A
C9: =Υπολογισμοί!C8 -> Μαθηματικά 1 | D9: =Υπολογισμοί!AL8 -> 80% | E9: =Υπολογισμοί!AM8 -> 2.67 | F9: =IFERROR(E9*Ρυθμίσεις!D11/SUM(tblClasses[Ώρες παρακολούθησης]),"") -> 0.45 | G9: =Υπολογισμοί!AN8 -> B-
C10: =Υπολογισμοί!C9 -> Μαθηματικά 2 | D10: =Υπολογισμοί!AL9 -> 89% | E10: =Υπολογισμοί!AM9 -> 3.33 | F10: =IFERROR(E10*Ρυθμίσεις!D12/SUM(tblClasses[Ώρες παρακολούθησης]),"") -> 0.56 | G10: =Υπολογισμοί!AN9 -> B+
C11: =Υπολογισμοί!C10 -> Προχωρημένος προγραμματισμός σε Java | D11: =Υπολογισμοί!AL10 -> 75% | E11: =Υπολογισμοί!AM10 -> 2.00 | F11: =IFERROR(E11*Ρυθμίσεις!D13/SUM(tblClasses[Ώρες παρακολούθησης]),"") -> 0.42 | G11: =Υπολογισμοί!AN10 -> C
C12: =Υπολογισμοί!C11 -> Ισπανικά | D12: =Υπολογισμοί!AL11 -> 50% | E12: =Υπολογισμοί!AM11 -> 0.00 | F12: =IFERROR(E12*Ρυθμίσεις!D14/SUM(tblClasses[Ώρες παρακολούθησης]),"") -> 0.00 | G12: =Υπολογισμοί!AN11 -> F
C13: =Υπολογισμοί!C12 -> Έκθεση | D13: =Υπολογισμοί!AL12 -> 95% | E13: =Υπολογισμοί!AM12 -> 4.00 | F13: =IFERROR(E13*Ρυθμίσεις!D15/SUM(tblClasses[Ώρες παρακολούθησης]),"") -> 0.33 | G13: =Υπολογισμοί!AN12 -> A
C14: =Υπολογισμοί!C13 ->  | D14: =Υπολογισμοί!AL13 ->  | E14: =Υπολογισμοί!AM13 ->  | F14: =IFERROR(E14*Ρυθμίσεις!D16/SUM(tblClasses[Ώρες παρακολούθησης]),"") ->  | G14: =Υπολογισμοί!AN13 -> 
C15: =Υπολογισμοί!C14 ->  | D15: =Υπολογισμοί!AL14 ->  | E15: =Υπολογισμοί!AM14 ->  | F15: =IFERROR(E15*Ρυθμίσεις!D17/SUM(tblClasses[Ώρες παρακολούθησης]),"") ->  | G15: =Υπολογισμοί!AN14 -> 
C16: =Υπολογισμοί!C15 ->  | D16: =Υπολογισμοί!AL15 ->  | E16: =Υπολογισμοί!AM15 ->  | F16: =IFERROR(E16*Ρυθμίσεις!D18/SUM(tblClasses[Ώρες παρακολούθησης]),"") ->  | G16: =Υπολογισμοί!AN15 -> 
C17: =Υπολογισμοί!C16 ->  | D17: =Υπολογισμοί!AL16 ->  | E17: =Υπολογισμοί!AM16 ->  | F17: =IFERROR(E17*Ρυθμίσεις!D19/SUM(tblClasses[Ώρες παρακολούθησης]),"") ->  | G17: =Υπολογισμοί!AN16 -> 
C18: =Υπολογισμοί!C17 ->  | D18: =Υπολογισμοί!AL17 ->  | E18: =Υπολογισμοί!AM17 ->  | F18: =IFERROR(E18*Ρυθμίσεις!D20/SUM(tblClasses[Ώρες παρακολούθησης]),"") ->  | G18: =Υπολογισμοί!AN17 -> 
C19: =Υπολογισμοί!C18 ->  | D19: =Υπολογισμοί!AL18 ->  | E19: =Υπολογισμοί!AM18 ->  | F19: =IFERROR(E19*Ρυθμίσεις!D21/SUM(tblClasses[Ώρες παρακολούθησης]),"") ->  | G19: =Υπολογισμοί!AN18 -> 
C20: =Υπολογισμοί!C19 ->  | D20: =Υπολογισμοί!AL19 ->  | E20: =Υπολογισμοί!AM19 ->  | F20: =IFERROR(E20*Ρυθμίσεις!D22/SUM(tblClasses[Ώρες παρακολούθησης]),"") ->  | G20: =Υπολογισμοί!AN19 -> 
C21: =Υπολογισμοί!C20 ->  | D21: =Υπολογισμοί!AL20 ->  | E21: =Υπολογισμοί!AM20 ->  | F21: =IFERROR(E21*Ρυθμίσεις!D23/SUM(tblClasses[Ώρες παρακολούθησης]),"") ->  | G21: =Υπολογισμοί!AN20 -> 
C22: =Υπολογισμοί!C21 ->  | D22: =Υπολογισμοί!AL21 ->  | E22: =Υπολογισμοί!AM21 ->  | F22: =IFERROR(E22*Ρυθμίσεις!D24/SUM(tblClasses[Ώρες παρακολούθησης]),"") ->  | G22: =Υπολογισμοί!AN21 -> 
C23: =Υπολογισμοί!C22 ->  | D23: =Υπολογισμοί!AL22 ->  | E23: =Υπολογισμοί!AM22 ->  | F23: =IFERROR(E23*Ρυθμίσεις!D25/SUM(tblClasses[Ώρες παρακολούθησης]),"") ->  | G23: =Υπολογισμοί!AN22 -> 
C24: =Υπολογισμοί!C23 ->  | D24: =Υπολογισμοί!AL23 ->  | E24: =Υπολογισμοί!AM23 ->  | F24: =IFERROR(E24*Ρυθμίσεις!D26/SUM(tblClasses[Ώρες παρακολούθησης]),"") ->  | G24: =Υπολογισμοί!AN23 -> 
C25: =Υπολογισμοί!C24 ->  | D25: =Υπολογισμοί!AL24 ->  | E25: =Υπολογισμοί!AM24 ->  | F25: =IFERROR(E25*Ρυθμίσεις!D27/SUM(tblClasses[Ώρες παρακολούθησης]),"") ->  | G25: =Υπολογισμοί!AN24 -> 
C26: =Υπολογισμοί!C25 ->  | D26: =Υπολογισμοί!AL25 ->  | E26: =Υπολογισμοί!AM25 ->  | F26: =IFERROR(E26*Ρυθμίσεις!D28/SUM(tblClasses[Ώρες παρακολούθησης]),"") ->  | G26: =Υπολογισμοί!AN25 -> 
C27: =Υπολογισμοί!C26 ->  | D27: =Υπολογισμοί!AL26 ->  | E27: =Υπολογισμοί!AM26 ->  | F27: =IFERROR(E27*Ρυθμίσεις!D29/SUM(tblClasses[Ώρες παρακολούθησης]),"") ->  | G27: =Υπολογισμοί!AN26 -> 
C28: =Υπολογισμοί!C27 ->  | D28: =Υπολογισμοί!AL27 ->  | E28: =Υπολογισμοί!AM27 ->  | F28: =IFERROR(E28*Ρυθμίσεις!D30/SUM(tblClasses[Ώρες παρακολούθησης]),"") ->  | G28: =Υπολογισμοί!AN27 -> 
C29: =Υπολογισμοί!C28 ->  | D29: =Υπολογισμοί!AL28 ->  | E29: =Υπολογισμοί!AM28 ->  | F29: =IFERROR(E29*Ρυθμίσεις!D31/SUM(tblClasses[Ώρες παρακολούθησης]),"") ->  | G29: =Υπολογισμοί!AN28 -> 
C30: =Υπολογισμοί!C29 ->  | D30: =Υπολογισμοί!AL29 ->  | E30: =Υπολογισμοί!AM29 ->  | F30: =IFERROR(E30*Ρυθμίσεις!D32/SUM(tblClasses[Ώρες παρακολούθησης]),"") ->  | G30: =Υπολογισμοί!AN29 -> 
C31: =Υπολογισμοί!C30 ->  | D31: =Υπολογισμοί!AL30 ->  | E31: =Υπολογισμοί!AM30 ->  | F31: =IFERROR(E31*Ρυθμίσεις!D33/SUM(tblClasses[Ώρες παρακολούθησης]),"") ->  | G31: =Υπολογισμοί!AN30 -> 

Sheet Ρυθμίσεις
B1: Ρυθμίσεις
C2: Βαθμολογίες και αντιστοίχιση μέσου όρου
C3: Ποσοστό | D3: 0% | E3: 60% | F3: 63% | G3: 67% | H3: 70% | I3: 73% | J3: 77% | K3: 80% | L3: 83% | M3: 87% | N3: 90% | O3: 93% | P3: 97%
C4: Αλφαβητικός βαθμός | D4: F | E4: D- | F4: D | G4: D+ | H4: C- | I4: C | J4: C+ | K4: B- | L4: B | M4: B+ | N4: A- | O4: A | P4: A+
C5: Μέσος όρος | D5: 0 | E5: 0.67 | F5: 1 | G5: 1.33 | H5: 1.67 | I5: 2 | J5: 2.33 | K5: 2.67 | L5: 3 | M5: 3.33 | N5: 3.67 | O5: 4 | P5: 4
C7: Σταθμισμένες βαθμολογίες για έως και 25 μαθήματα
C8: Μαθήματα που παρακολουθείτε | D8: Ώρες παρακολούθησης | E8: Εργασία για το σπίτι | F8: Έκθεση-δοκίμιο | G8: Διαγώνισμα | H8: Εργασία | I8: Εξάμηνο | J8: Τελική εξέταση | K8: Άλλο | L8: % συνόλου
C9: Γαλλικά | D9: 3.0 | E9: 10% | F9: 15% | G9: 15% | H9: 10% | I9: 20% | J9: 30% | L9: =SUM(tblClasses[[#This Row],[Εργασία για το σπίτι]:[Άλλο]]) -> 100%
C10: Θεωρητική Φυσική | D10: 3.0 | E10: 15% | F10: 15% | G10: 10% | H10: 10% | I10: 15% | J10: 30% | K10: 5% | L10: =SUM(tblClasses[[#This Row],[Εργασία για το σπίτι]:[Άλλο]]) -> 100%
C11: Μαθηματικά 1 | D11: 4.0 | E11: 10% | F11: 15% | G11: 15% | H11: 10% | I11: 20% | J11: 30% | L11: =SUM(tblClasses[[#This Row],[Εργασία για το σπίτι]:[Άλλο]]) -> 100%
C12: Μαθηματικά 2 | D12: 4.0 | E12: 15% | F12: 15% | G12: 10% | H12: 10% | I12: 15% | J12: 30% | K12: 5% | L12: =SUM(tblClasses[[#This Row],[Εργασία για το σπίτι]:[Άλλο]]) -> 100%
C13: Προχωρημένος προγραμματισμός σε Java | D13: 5.0 | E13: 15% | F13: 15% | G13: 10% | H13: 10% | I13: 20% | J13: 30% | L13: =SUM(tblClasses[[#This Row],[Εργασία για το σπίτι]:[Άλλο]]) -> 100%
C14: Ισπανικά | D14: 3.0 | E14: 10% | F14: 15% | G14: 17% | H14: 13% | I14: 20% | J14: 20% | K14: 5% | L14: =SUM(tblClasses[[#This Row],[Εργασία για το σπίτι]:[Άλλο]]) -> 100%
C15: Έκθεση | D15: 2.0 | E15: 15% | F15: 15% | G15: 12% | H15: 15% | I15: 15% | J15: 25% | K15: 3% | L15: =SUM(tblClasses[[#This Row],[Εργασία για το σπίτι]:[Άλλο]]) -> 100%

Sheet Υπολογισμοί (hidden)
B1: Υπολογισμοί
C2: Αυτό το φύλλο εργασίας παρέχει υπολογισμούς για τους βαθμούς και το μέσο όρο σας και πρέπει να παραμείνει κρυφό. Τυχόν αλλαγές σε αυτό το φύλλο ενδέχεται να προκαλέσουν σφάλματα.
C4: Τρέχουσα λίστα μαθημάτων | D4: Βαθμολογίες (από 1) | AC4: Υπολογισμός βαθμολογίας
C5: Μάθημα | D5: 1 | E5: 2 | F5: 3 | G5: 4 | H5: 5 | I5: 6 | J5: 7 | K5: 8 | L5: 9 | M5: 10 | N5: 11 | O5: 12 | P5: 13 | Q5: 14 | R5: 15 | S5: 16 | T5: 17 | U5: 18 | V5: 19 | W5: 20 | X5: 21 | Y5: 22 | Z5: 23 | AA5: 24 | AB5: 25 | AC5: =tblClasses[[#Headers],[Εργασία για το σπίτι]] -> Εργασία για το σπίτι | AD5: =tblClasses[[#Headers],[Έκθεση-δοκίμιο]] -> Έκθεση-δοκίμιο | AE5: =tblClasses[[#Headers],[Διαγώνισμα]] -> Διαγώνισμα | AF5: =tblClasses[[#Headers],[Εργασία]] -> Εργασία | AG5: =tblClasses[[#Headers],[Εξάμηνο]] -> Εξάμηνο | AH5: =tblClasses[[#Headers],[Τελική εξέταση]] -> Τελική εξέταση | AI5: =tblClasses[[#Headers],[Άλλο]] -> Άλλο | AJ5: Σύνολο | AK5: Οι πιθανές συνολικές μονάδες | AL5: Συνολικό % | AM5: Βαθμοί | AN5: Αλφαβητικός βαθμός
C6: Γαλλικά | D6: =IFERROR(INDEX(tblClassScores[],MATCH($C6:$C30&D$5:AB$5,Υπολογισμοί!$C$33:$C$657,0),4),"") -> 80% | E6: 90% | F6: 80% | AC6: =IFERROR(AVERAGEIFS(tblClassScores[Βαθμολογία],tblClassScores[Μάθημα],Υπολογισμοί!$C6,tblClassScores[Τύπος],Υπολογισμοί!AC$5)*Ρυθμίσεις!E9,"") -> 0.08333333333 | AD6: =IFERROR(AVERAGEIFS(tblClassScores[Βαθμολογία],tblClassScores[Μάθημα],Υπολογισμοί!$C6,tblClassScores[Τύπος],Υπολογισμοί!AD$5)*Ρυθμίσεις!F9,"") ->  | AE6: =IFERROR(AVERAGEIFS(tblClassScores[Βαθμολογία],tblClassScores[Μάθημα],Υπολογισμοί!$C6,tblClassScores[Τύπος],Υπολογισμοί!AE$5)*Ρυθμίσεις!G9,"") ->  | AF6: =IFERROR(AVERAGEIFS(tblClassScores[Βαθμολογία],tblClassScores[Μάθημα],Υπολογισμοί!$C6,tblClassScores[Τύπος],Υπολογισμοί!AF$5)*Ρυθμίσεις!H9,"") ->  | AG6: =IFERROR(AVERAGEIFS(tblClassScores[Βαθμολογία],tblClassScores[Μάθημα],Υπολογισμοί!$C6,tblClassScores[Τύπος],Υπολογισμοί!AG$5)*Ρυθμίσεις!I9,"") ->  | AH6: =IFERROR(AVERAGEIFS(tblClassScores[Βαθμολογία],tblClassScores[Μάθημα],Υπολογισμοί!$C6,tblClassScores[Τύπος],Υπολογισμοί!AH$5)*Ρυθμίσεις!J9,"") ->  | AI6: =IFERROR(AVERAGEIFS(tblClassScores[Βαθμολογία],tblClassScores[Μάθημα],Υπολογισμοί!$C6,tblClassScores[Τύπος],Υπολογισμοί!AI$5)*Ρυθμίσεις!K9,"") ->  | AJ6: =SUM(AC6:AI6) -> 0.08333333333 | AK6: =SUMIFS(Ρυθμίσεις!E9:K9,Υπολογισμοί!AC6:AI6,">0") -> 0.1 | AL6: =IFERROR(AJ6/AK6,"") -> 83% | AM6: =IFERROR(HLOOKUP(AL6,lstGPAMapping,3),"") -> 3 | AN6: =IFERROR(HLOOKUP(AL6,lstGPAMapping,2),"") -> B
C7: Θεωρητική Φυσική | D7: 95% | AC7: =IFERROR(AVERAGEIFS(tblClassScores[Βαθμολογία],tblClassScores[Μάθημα],Υπολογισμοί!$C7,tblClassScores[Τύπος],Υπολογισμοί!AC$5)*Ρυθμίσεις!E10,"") -> 0.1425 | AD7: =IFERROR(AVERAGEIFS(tblClassScores[Βαθμολογία],tblClassScores[Μάθημα],Υπολογισμοί!$C7,tblClassScores[Τύπος],Υπολογισμοί!AD$5)*Ρυθμίσεις!F10,"") ->  | AE7: =IFERROR(AVERAGEIFS(tblClassScores[Βαθμολογία],tblClassScores[Μάθημα],Υπολογισμοί!$C7,tblClassScores[Τύπος],Υπολογισμοί!AE$5)*Ρυθμίσεις!G10,"") ->  | AF7: =IFERROR(AVERAGEIFS(tblClassScores[Βαθμολογία],tblClassScores[Μάθημα],Υπολογισμοί!$C7,tblClassScores[Τύπος],Υπολογισμοί!AF$5)*Ρυθμίσεις!H10,"") ->  | AG7: =IFERROR(AVERAGEIFS(tblClassScores[Βαθμολογία],tblClassScores[Μάθημα],Υπολογισμοί!$C7,tblClassScores[Τύπος],Υπολογισμοί!AG$5)*Ρυθμίσεις!I10,"") ->  | AH7: =IFERROR(AVERAGEIFS(tblClassScores[Βαθμολογία],tblClassScores[Μάθημα],Υπολογισμοί!$C7,tblClassScores[Τύπος],Υπολογισμοί!AH$5)*Ρυθμίσεις!J10,"") ->  | AI7: =IFERROR(AVERAGEIFS(tblClassScores[Βαθμολογία],tblClassScores[Μάθημα],Υπολογισμοί!$C7,tblClassScores[Τύπος],Υπολογισμοί!AI$5)*Ρυθμίσεις!K10,"") ->  | AJ7: =SUM(AC7:AI7) -> 0.1425 | AK7: =SUMIFS(Ρυθμίσεις!E10:K10,Υπολογισμοί!AC7:AI7,">0") -> 0.15 | AL7: =IFERROR(AJ7/AK7,"") -> 95% | AM7: 4 | AN7: A
C8: Μαθηματικά 1 | D8: 80% | E8: 80% | AC8: =IFERROR(AVERAGEIFS(tblClassScores[Βαθμολογία],tblClassScores[Μάθημα],Υπολογισμοί!$C8,tblClassScores[Τύπος],Υπολογισμοί!AC$5)*Ρυθμίσεις!E11,"") -> 0.08 | AD8: =IFERROR(AVERAGEIFS(tblClassScores[Βαθμολογία],tblClassScores[Μάθημα],Υπολογισμοί!$C8,tblClassScores[Τύπος],Υπολογισμοί!AD$5)*Ρυθμίσεις!F11,"") ->  | AE8: =IFERROR(AVERAGEIFS(tblClassScores[Βαθμολογία],tblClassScores[Μάθημα],Υπολογισμοί!$C8,tblClassScores[Τύπος],Υπολογισμοί!AE$5)*Ρυθμίσεις!G11,"") ->  | AF8: =IFERROR(AVERAGEIFS(tblClassScores[Βαθμολογία],tblClassScores[Μάθημα],Υπολογισμοί!$C8,tblClassScores[Τύπος],Υπολογισμοί!AF$5)*Ρυθμίσεις!H11,"") ->  | AG8: =IFERROR(AVERAGEIFS(tblClassScores[Βαθμολογία],tblClassScores[Μάθημα],Υπολογισμοί!$C8,tblClassScores[Τύπος],Υπολογισμοί!AG$5)*Ρυθμίσεις!I11,"") ->  | AH8: =IFERROR(AVERAGEIFS(tblClassScores[Βαθμολογία],tblClassScores[Μάθημα],Υπολογισμοί!$C8,tblClassScores[Τύπος],Υπολογισμοί!AH$5)*Ρυθμίσεις!J11,"") ->  | AI8: =IFERROR(AVERAGEIFS(tblClassScores[Βαθμολογία],tblClassScores[Μάθημα],Υπολογισμοί!$C8,tblClassScores[Τύπος],Υπολογισμοί!AI$5)*Ρυθμίσεις!K11,"") ->  | AJ8: 0.08 | AK8: =SUMIFS(Ρυθμίσεις!E11:K11,Υπολογισμοί!AC8:AI8,">0") -> 0.1 | AL8: 80% | AM8: 2.67 | AN8: B-
C9: Μαθηματικά 2 | D9: 85% | E9: 95% | AC9: =IFERROR(AVERAGEIFS(tblClassScores[Βαθμολογία],tblClassScores[Μάθημα],Υπολογισμοί!$C9,tblClassScores[Τύπος],Υπολογισμοί!AC$5)*Ρυθμίσεις!E12,"") -> 0.1275 | AD9: =IFERROR(AVERAGEIFS(tblClassScores[Βαθμολογία],tblClassScores[Μάθημα],Υπολογισμοί!$C9,tblClassScores[Τύπος],Υπολογισμοί!AD$5)*Ρυθμίσεις!F12,"") ->  | AE9: =IFERROR(AVERAGEIFS(tblClassScores[Βαθμολογία],tblClassScores[Μάθημα],Υπολογισμοί!$C9,tblClassScores[Τύπος],Υπολογισμοί!AE$5)*Ρυθμίσεις!G12,"") -> 0.095 | AF9: =IFERROR(AVERAGEIFS(tblClassScores[Βαθμολογία],tblClassScores[Μάθημα],Υπολογισμοί!$C9,tblClassScores[Τύπος],Υπολογισμοί!AF$5)*Ρυθμίσεις!H12,"") ->  | AG9: =IFERROR(AVERAGEIFS(tblClassScores[Βαθμολογία],tblClassScores[Μάθημα],Υπολογισμοί!$C9,tblClassScores[Τύπος],Υπολογισμοί!AG$5)*Ρυθμίσεις!I12,"") ->  | AH9: =IFERROR(AVERAGEIFS(tblClassScores[Βαθμολογία],tblClassScores[Μάθημα],Υπολογισμοί!$C9,tblClassScores[Τύπος],Υπολογισμοί!AH$5)*Ρυθμίσεις!J12,"") ->  | AI9: =IFERROR(AVERAGEIFS(tblClassScores[Βαθμολογία],tblClassScores[Μάθημα],Υπολογισμοί!$C9,tblClassScores[Τύπος],Υπολογισμοί!AI$5)*Ρυθμίσεις!K12,"") ->  | AJ9: 0.2225 | AK9: =SUMIFS(Ρυθμίσεις!E12:K12,Υπολογισμοί!AC9:AI9,">0") -> 0.25 | AL9: 89% | AM9: 3.33 | AN9: B+
C10: Προχωρημένος προγραμματισμός σε Java | D10: 75% | AC10: =IFERROR(AVERAGEIFS(tblClassScores[Βαθμολογία],tblClassScores[Μάθημα],Υπολογισμοί!$C10,tblClassScores[Τύπος],Υπολογισμοί!AC$5)*Ρυθμίσεις!E13,"") ->  | AD10: =IFERROR(AVERAGEIFS(tblClassScores[Βαθμολογία],tblClassScores[Μάθημα],Υπολογισμοί!$C10,tblClassScores[Τύπος],Υπολογισμοί!AD$5)*Ρυθμίσεις!F13,"") ->  | AE10: =IFERROR(AVERAGEIFS(tblClassScores[Βαθμολογία],tblClassScores[Μάθημα],Υπολογισμοί!$C10,tblClassScores[Τύπος],Υπολογισμοί!AE$5)*Ρυθμίσεις!G13,"") ->  | AF10: =IFERROR(AVERAGEIFS(tblClassScores[Βαθμολογία],tblClassScores[Μάθημα],Υπολογισμοί!$C10,tblClassScores[Τύπος],Υπολογισμοί!AF$5)*Ρυθμίσεις!H13,"") ->  | AG10: =IFERROR(AVERAGEIFS(tblClassScores[Βαθμολογία],tblClassScores[Μάθημα],Υπολογισμοί!$C10,tblClassScores[Τύπος],Υπολογισμοί!AG$5)*Ρυθμίσεις!I13,"") -> 0.15 | AH10: =IFERROR(AVERAGEIFS(tblClassScores[Βαθμολογία],tblClassScores[Μάθημα],Υπολογισμοί!$C10,tblClassScores[Τύπος],Υπολογισμοί!AH$5)*Ρυθμίσεις!J13,"") ->  | AI10: =IFERROR(AVERAGEIFS(tblClassScores[Βαθμολογία],tblClassScores[Μάθημα],Υπολογισμοί!$C10,tblClassScores[Τύπος],Υπολογισμοί!AI$5)*Ρυθμίσεις!K13,"") ->  | AJ10: 0.15 | AK10: =SUMIFS(Ρυθμίσεις!E13:K13,Υπολογισμοί!AC10:AI10,">0") -> 0.2 | AL10: 75% | AM10: 2 | AN10: C
C11: Ισπανικά | D11: 50% | AC11: =IFERROR(AVERAGEIFS(tblClassScores[Βαθμολογία],tblClassScores[Μάθημα],Υπολογισμοί!$C11,tblClassScores[Τύπος],Υπολογισμοί!AC$5)*Ρυθμίσεις!E14,"") -> 0.05 | AD11: =IFERROR(AVERAGEIFS(tblClassScores[Βαθμολογία],tblClassScores[Μάθημα],Υπολογισμοί!$C11,tblClassScores[Τύπος],Υπολογισμοί!AD$5)*Ρυθμίσεις!F14,"") ->  | AE11: =IFERROR(AVERAGEIFS(tblClassScores[Βαθμολογία],tblClassScores[Μάθημα],Υπολογισμοί!$C11,tblClassScores[Τύπος],Υπολογισμοί!AE$5)*Ρυθμίσεις!G14,"") ->  | AF11: =IFERROR(AVERAGEIFS(tblClassScores[Βαθμολογία],tblClassScores[Μάθημα],Υπολογισμοί!$C11,tblClassScores[Τύπος],Υπολογισμοί!AF$5)*Ρυθμίσεις!H14,"") ->  | AG11: =IFERROR(AVERAGEIFS(tblClassScores[Βαθμολογία],tblClassScores[Μάθημα],Υπολογισμοί!$C11,tblClassScores[Τύπος],Υπολογισμοί!AG$5)*Ρυθμίσεις!I14,"") ->  | AH11: =IFERROR(AVERAGEIFS(tblClassScores[Βαθμολογία],tblClassScores[Μάθημα],Υπολογισμοί!$C11,tblClassScores[Τύπος],Υπολογισμοί!AH$5)*Ρυθμίσεις!J14,"") ->  | AI11: =IFERROR(AVERAGEIFS(tblClassScores[Βαθμολογία],tblClassScores[Μάθημα],Υπολογισμοί!$C11,tblClassScores[Τύπος],Υπολογισμοί!AI$5)*Ρυθμίσεις!K14,"") ->  | AJ11: 0.05 | AK11: =SUMIFS(Ρυθμίσεις!E14:K14,Υπολογισμοί!AC11:AI11,">0") -> 0.1 | AL11: 50% | AM11: 0 | AN11: F
C12: Έκθεση | D12: 95% | AC12: =IFERROR(AVERAGEIFS(tblClassScores[Βαθμολογία],tblClassScores[Μάθημα],Υπολογισμοί!$C12,tblClassScores[Τύπος],Υπολογισμοί!AC$5)*Ρυθμίσεις!E15,"") ->  | AD12: =IFERROR(AVERAGEIFS(tblClassScores[Βαθμολογία],tblClassScores[Μάθημα],Υπολογισμοί!$C12,tblClassScores[Τύπος],Υπολογισμοί!AD$5)*Ρυθμίσεις!F15,"") ->  | AE12: =IFERROR(AVERAGEIFS(tblClassScores[Βαθμολογία],tblClassScores[Μάθημα],Υπολογισμοί!$C12,tblClassScores[Τύπος],Υπολογισμοί!AE$5)*Ρυθμίσεις!G15,"") ->  | AF12: =IFERROR(AVERAGEIFS(tblClassScores[Βαθμολογία],tblClassScores[Μάθημα],Υπολογισμοί!$C12,tblClassScores[Τύπος],Υπολογισμοί!AF$5)*Ρυθμίσεις!H15,"") -> 0.1425 | AG12: =IFERROR(AVERAGEIFS(tblClassScores[Βαθμολογία],tblClassScores[Μάθημα],Υπολογισμοί!$C12,tblClassScores[Τύπος],Υπολογισμοί!AG$5)*Ρυθμίσεις!I15,"") ->  | AH12: =IFERROR(AVERAGEIFS(tblClassScores[Βαθμολογία],tblClassScores[Μάθημα],Υπολογισμοί!$C12,tblClassScores[Τύπος],Υπολογισμοί!AH$5)*Ρυθμίσεις!J15,"") ->  | AI12: =IFERROR(AVERAGEIFS(tblClassScores[Βαθμολογία],tblClassScores[Μάθημα],Υπολογισμοί!$C12,tblClassScores[Τύπος],Υπολογισμοί!AI$5)*Ρυθμίσεις!K15,"") ->  | AJ12: 0.1425 | AK12: =SUMIFS(Ρυθμίσεις!E15:K15,Υπολογισμοί!AC12:AI12,">0") -> 0.15 | AL12: 95% | AM12: 4 | AN12: A
C13: =IF(Ρυθμίσεις!C16="","",Ρυθμίσεις!C16) ->  | AC13: =IFERROR(AVERAGEIFS(tblClassScores[Βαθμολογία],tblClassScores[Μάθημα],Υπολογισμοί!$C13,tblClassScores[Τύπος],Υπολογισμοί!AC$5)*Ρυθμίσεις!#REF!,"") ->  | AD13: =IFERROR(AVERAGEIFS(tblClassScores[Βαθμολογία],tblClassScores[Μάθημα],Υπολογισμοί!$C13,tblClassScores[Τύπος],Υπολογισμοί!AD$5)*Ρυθμίσεις!#REF!,"") ->  | AE13: =IFERROR(AVERAGEIFS(tblClassScores[Βαθμολογία],tblClassScores[Μάθημα],Υπολογισμοί!$C13,tblClassScores[Τύπος],Υπολογισμοί!AE$5)*Ρυθμίσεις!#REF!,"") ->  | AF13: =IFERROR(AVERAGEIFS(tblClassScores[Βαθμολογία],tblClassScores[Μάθημα],Υπολογισμοί!$C13,tblClassScores[Τύπος],Υπολογισμοί!AF$5)*Ρυθμίσεις!#REF!,"") ->  | AG13: =IFERROR(AVERAGEIFS(tblClassScores[Βαθμολογία],tblClassScores[Μάθημα],Υπολογισμοί!$C13,tblClassScores[Τύπος],Υπολογισμοί!AG$5)*Ρυθμίσεις!#REF!,"") ->  | AH13: =IFERROR(AVERAGEIFS(tblClassScores[Βαθμολογία],tblClassScores[Μάθημα],Υπολογισμοί!$C13,tblClassScores[Τύπος],Υπολογισμοί!AH$5)*Ρυθμίσεις!#REF!,"") ->  | AI13: =IFERROR(AVERAGEIFS(tblClassScores[Βαθμολογία],tblClassScores[Μάθημα],Υπολογισμοί!$C13,tblClassScores[Τύπος],Υπολογισμοί!AI$5)*Ρυθμίσεις!#REF!,"") ->  | AJ13: 0 | AK13: =SUMIFS(Ρυθμίσεις!E16:K16,Υπολογισμοί!AC13:AI13,">0") -> 0
C14: =IF(Ρυθμίσεις!C17="","",Ρυθμίσεις!C17) ->  | AC14: =IFERROR(AVERAGEIFS(tblClassScores[Βαθμολογία],tblClassScores[Μάθημα],Υπολογισμοί!$C14,tblClassScores[Τύπος],Υπολογισμοί!AC$5)*Ρυθμίσεις!#REF!,"") ->  | AD14: =IFERROR(AVERAGEIFS(tblClassScores[Βαθμολογία],tblClassScores[Μάθημα],Υπολογισμοί!$C14,tblClassScores[Τύπος],Υπολογισμοί!AD$5)*Ρυθμίσεις!#REF!,"") ->  | AE14: =IFERROR(AVERAGEIFS(tblClassScores[Βαθμολογία],tblClassScores[Μάθημα],Υπολογισμοί!$C14,tblClassScores[Τύπος],Υπολογισμοί!AE$5)*Ρυθμίσεις!#REF!,"") ->  | AF14: =IFERROR(AVERAGEIFS(tblClassScores[Βαθμολογία],tblClassScores[Μάθημα],Υπολογισμοί!$C14,tblClassScores[Τύπος],Υπολογισμοί!AF$5)*Ρυθμίσεις!#REF!,"") ->  | AG14: =IFERROR(AVERAGEIFS(tblClassScores[Βαθμολογία],tblClassScores[Μάθημα],Υπολογισμοί!$C14,tblClassScores[Τύπος],Υπολογισμοί!AG$5)*Ρυθμίσεις!#REF!,"") ->  | AH14: =IFERROR(AVERAGEIFS(tblClassScores[Βαθμολογία],tblClassScores[Μάθημα],Υπολογισμοί!$C14,tblClassScores[Τύπος],Υπολογισμοί!AH$5)*Ρυθμίσεις!#REF!,"") ->  | AI14: =IFERROR(AVERAGEIFS(tblClassScores[Βαθμολογία],tblClassScores[Μάθημα],Υπολογισμοί!$C14,tblClassScores[Τύπος],Υπολογισμοί!AI$5)*Ρυθμίσεις!#REF!,"") ->  | AJ14: 0 | AK14: =SUMIFS(Ρυθμίσεις!E17:K17,Υπολογισμοί!AC14:AI14,">0") -> 0
C15: =IF(Ρυθμίσεις!C18="","",Ρυθμίσεις!C18) ->  | AC15: =IFERROR(AVERAGEIFS(tblClassScores[Βαθμολογία],tblClassScores[Μάθημα],Υπολογισμοί!$C15,tblClassScores[Τύπος],Υπολογισμοί!AC$5)*Ρυθμίσεις!#REF!,"") ->  | AD15: =IFERROR(AVERAGEIFS(tblClassScores[Βαθμολογία],tblClassScores[Μάθημα],Υπολογισμοί!$C15,tblClassScores[Τύπος],Υπολογισμοί!AD$5)*Ρυθμίσεις!#REF!,"") ->  | AE15: =IFERROR(AVERAGEIFS(tblClassScores[Βαθμολογία],tblClassScores[Μάθημα],Υπολογισμοί!$C15,tblClassScores[Τύπος],Υπολογισμοί!AE$5)*Ρυθμίσεις!#REF!,"") ->  | AF15: =IFERROR(AVERAGEIFS(tblClassScores[Βαθμολογία],tblClassScores[Μάθημα],Υπολογισμοί!$C15,tblClassScores[Τύπος],Υπολογισμοί!AF$5)*Ρυθμίσεις!#REF!,"") ->  | AG15: =IFERROR(AVERAGEIFS(tblClassScores[Βαθμολογία],tblClassScores[Μάθημα],Υπολογισμοί!$C15,tblClassScores[Τύπος],Υπολογισμοί!AG$5)*Ρυθμίσεις!#REF!,"") ->  | AH15: =IFERROR(AVERAGEIFS(tblClassScores[Βαθμολογία],tblClassScores[Μάθημα],Υπολογισμοί!$C15,tblClassScores[Τύπος],Υπολογισμοί!AH$5)*Ρυθμίσεις!#REF!,"") ->  | AI15: =IFERROR(AVERAGEIFS(tblClassScores[Βαθμολογία],tblClassScores[Μάθημα],Υπολογισμοί!$C15,tblClassScores[Τύπος],Υπολογισμοί!AI$5)*Ρυθμίσεις!#REF!,"") ->  | AJ15: 0 | AK15: =SUMIFS(Ρυθμίσεις!E18:K18,Υπολογισμοί!AC15:AI15,">0") -> 0
C16: =IF(Ρυθμίσεις!C19="","",Ρυθμίσεις!C19) ->  | AC16: =IFERROR(AVERAGEIFS(tblClassScores[Βαθμολογία],tblClassScores[Μάθημα],Υπολογισμοί!$C16,tblClassScores[Τύπος],Υπολογισμοί!AC$5)*Ρυθμίσεις!#REF!,"") ->  | AD16: =IFERROR(AVERAGEIFS(tblClassScores[Βαθμολογία],tblClassScores[Μάθημα],Υπολογισμοί!$C16,tblClassScores[Τύπος],Υπολογισμοί!AD$5)*Ρυθμίσεις!#REF!,"") ->  | AE16: =IFERROR(AVERAGEIFS(tblClassScores[Βαθμολογία],tblClassScores[Μάθημα],Υπολογισμοί!$C16,tblClassScores[Τύπος],Υπολογισμοί!AE$5)*Ρυθμίσεις!#REF!,"") ->  | AF16: =IFERROR(AVERAGEIFS(tblClassScores[Βαθμολογία],tblClassScores[Μάθημα],Υπολογισμοί!$C16,tblClassScores[Τύπος],Υπολογισμοί!AF$5)*Ρυθμίσεις!#REF!,"") ->  | AG16: =IFERROR(AVERAGEIFS(tblClassScores[Βαθμολογία],tblClassScores[Μάθημα],Υπολογισμοί!$C16,tblClassScores[Τύπος],Υπολογισμοί!AG$5)*Ρυθμίσεις!#REF!,"") ->  | AH16: =IFERROR(AVERAGEIFS(tblClassScores[Βαθμολογία],tblClassScores[Μάθημα],Υπολογισμοί!$C16,tblClassScores[Τύπος],Υπολογισμοί!AH$5)*Ρυθμίσεις!#REF!,"") ->  | AI16: =IFERROR(AVERAGEIFS(tblClassScores[Βαθμολογία],tblClassScores[Μάθημα],Υπολογισμοί!$C16,tblClassScores[Τύπος],Υπολογισμοί!AI$5)*Ρυθμίσεις!#REF!,"") ->  | AJ16: 0 | AK16: =SUMIFS(Ρυθμίσεις!E19:K19,Υπολογισμοί!AC16:AI16,">0") -> 0
C17: =IF(Ρυθμίσεις!C20="","",Ρυθμίσεις!C20) ->  | AC17: =IFERROR(AVERAGEIFS(tblClassScores[Βαθμολογία],tblClassScores[Μάθημα],Υπολογισμοί!$C17,tblClassScores[Τύπος],Υπολογισμοί!AC$5)*Ρυθμίσεις!#REF!,"") ->  | AD17: =IFERROR(AVERAGEIFS(tblClassScores[Βαθμολογία],tblClassScores[Μάθημα],Υπολογισμοί!$C17,tblClassScores[Τύπος],Υπολογισμοί!AD$5)*Ρυθμίσεις!#REF!,"") ->  | AE17: =IFERROR(AVERAGEIFS(tblClassScores[Βαθμολογία],tblClassScores[Μάθημα],Υπολογισμοί!$C17,tblClassScores[Τύπος],Υπολογισμοί!AE$5)*Ρυθμίσεις!#REF!,"") ->  | AF17: =IFERROR(AVERAGEIFS(tblClassScores[Βαθμολογία],tblClassScores[Μάθημα],Υπολογισμοί!$C17,tblClassScores[Τύπος],Υπολογισμοί!AF$5)*Ρυθμίσεις!#REF!,"") ->  | AG17: =IFERROR(AVERAGEIFS(tblClassScores[Βαθμολογία],tblClassScores[Μάθημα],Υπολογισμοί!$C17,tblClassScores[Τύπος],Υπολογισμοί!AG$5)*Ρυθμίσεις!#REF!,"") ->  | AH17: =IFERROR(AVERAGEIFS(tblClassScores[Βαθμολογία],tblClassScores[Μάθημα],Υπολογισμοί!$C17,tblClassScores[Τύπος],Υπολογισμοί!AH$5)*Ρυθμίσεις!#REF!,"") ->  | AI17: =IFERROR(AVERAGEIFS(tblClassScores[Βαθμολογία],tblClassScores[Μάθημα],Υπολογισμοί!$C17,tblClassScores[Τύπος],Υπολογισμοί!AI$5)*Ρυθμίσεις!#REF!,"") ->  | AJ17: 0 | AK17: =SUMIFS(Ρυθμίσεις!E20:K20,Υπολογισμοί!AC17:AI17,">0") -> 0
C18: =IF(Ρυθμίσεις!C21="","",Ρυθμίσεις!C21) ->  | AC18: =IFERROR(AVERAGEIFS(tblClassScores[Βαθμολογία],tblClassScores[Μάθημα],Υπολογισμοί!$C18,tblClassScores[Τύπος],Υπολογισμοί!AC$5)*Ρυθμίσεις!#REF!,"") ->  | AD18: =IFERROR(AVERAGEIFS(tblClassScores[Βαθμολογία],tblClassScores[Μάθημα],Υπολογισμοί!$C18,tblClassScores[Τύπος],Υπολογισμοί!AD$5)*Ρυθμίσεις!#REF!,"") ->  | AE18: =IFERROR(AVERAGEIFS(tblClassScores[Βαθμολογία],tblClassScores[Μάθημα],Υπολογισμοί!$C18,tblClassScores[Τύπος],Υπολογισμοί!AE$5)*Ρυθμίσεις!#REF!,"") ->  | AF18: =IFERROR(AVERAGEIFS(tblClassScores[Βαθμολογία],tblClassScores[Μάθημα],Υπολογισμοί!$C18,tblClassScores[Τύπος],Υπολογισμοί!AF$5)*Ρυθμίσεις!#REF!,"") ->  | AG18: =IFERROR(AVERAGEIFS(tblClassScores[Βαθμολογία],tblClassScores[Μάθημα],Υπολογισμοί!$C18,tblClassScores[Τύπος],Υπολογισμοί!AG$5)*Ρυθμίσεις!#REF!,"") ->  | AH18: =IFERROR(AVERAGEIFS(tblClassScores[Βαθμολογία],tblClassScores[Μάθημα],Υπολογισμοί!$C18,tblClassScores[Τύπος],Υπολογισμοί!AH$5)*Ρυθμίσεις!#REF!,"") ->  | AI18: =IFERROR(AVERAGEIFS(tblClassScores[Βαθμολογία],tblClassScores[Μάθημα],Υπολογισμοί!$C18,tblClassScores[Τύπος],Υπολογισμοί!AI$5)*Ρυθμίσεις!#REF!,"") ->  | AJ18: 0 | AK18: =SUMIFS(Ρυθμίσεις!E21:K21,Υπολογισμοί!AC18:AI18,">0") -> 0
C19: =IF(Ρυθμίσεις!C22="","",Ρυθμίσεις!C22) ->  | AC19: =IFERROR(AVERAGEIFS(tblClassScores[Βαθμολογία],tblClassScores[Μάθημα],Υπολογισμοί!$C19,tblClassScores[Τύπος],Υπολογισμοί!AC$5)*Ρυθμίσεις!#REF!,"") ->  | AD19: =IFERROR(AVERAGEIFS(tblClassScores[Βαθμολογία],tblClassScores[Μάθημα],Υπολογισμοί!$C19,tblClassScores[Τύπος],Υπολογισμοί!AD$5)*Ρυθμίσεις!#REF!,"") ->  | AE19: =IFERROR(AVERAGEIFS(tblClassScores[Βαθμολογία],tblClassScores[Μάθημα],Υπολογισμοί!$C19,tblClassScores[Τύπος],Υπολογισμοί!AE$5)*Ρυθμίσεις!#REF!,"") ->  | AF19: =IFERROR(AVERAGEIFS(tblClassScores[Βαθμολογία],tblClassScores[Μάθημα],Υπολογισμοί!$C19,tblClassScores[Τύπος],Υπολογισμοί!AF$5)*Ρυθμίσεις!#REF!,"") ->  | AG19: =IFERROR(AVERAGEIFS(tblClassScores[Βαθμολογία],tblClassScores[Μάθημα],Υπολογισμοί!$C19,tblClassScores[Τύπος],Υπολογισμοί!AG$5)*Ρυθμίσεις!#REF!,"") ->  | AH19: =IFERROR(AVERAGEIFS(tblClassScores[Βαθμολογία],tblClassScores[Μάθημα],Υπολογισμοί!$C19,tblClassScores[Τύπος],Υπολογισμοί!AH$5)*Ρυθμίσεις!#REF!,"") ->  | AI19: =IFERROR(AVERAGEIFS(tblClassScores[Βαθμολογία],tblClassScores[Μάθημα],Υπολογισμοί!$C19,tblClassScores[Τύπος],Υπολογισμοί!AI$5)*Ρυθμίσεις!#REF!,"") ->  | AJ19: 0 | AK19: =SUMIFS(Ρυθμίσεις!E22:K22,Υπολογισμοί!AC19:AI19,">0") -> 0
C20: =IF(Ρυθμίσεις!C23="","",Ρυθμίσεις!C23) ->  | AC20: =IFERROR(AVERAGEIFS(tblClassScores[Βαθμολογία],tblClassScores[Μάθημα],Υπολογισμοί!$C20,tblClassScores[Τύπος],Υπολογισμοί!AC$5)*Ρυθμίσεις!#REF!,"") ->  | AD20: =IFERROR(AVERAGEIFS(tblClassScores[Βαθμολογία],tblClassScores[Μάθημα],Υπολογισμοί!$C20,tblClassScores[Τύπος],Υπολογισμοί!AD$5)*Ρυθμίσεις!#REF!,"") ->  | AE20: =IFERROR(AVERAGEIFS(tblClassScores[Βαθμολογία],tblClassScores[Μάθημα],Υπολογισμοί!$C20,tblClassScores[Τύπος],Υπολογισμοί!AE$5)*Ρυθμίσεις!#REF!,"") ->  | AF20: =IFERROR(AVERAGEIFS(tblClassScores[Βαθμολογία],tblClassScores[Μάθημα],Υπολογισμοί!$C20,tblClassScores[Τύπος],Υπολογισμοί!AF$5)*Ρυθμίσεις!#REF!,"") ->  | AG20: =IFERROR(AVERAGEIFS(tblClassScores[Βαθμολογία],tblClassScores[Μάθημα],Υπολογισμοί!$C20,tblClassScores[Τύπος],Υπολογισμοί!AG$5)*Ρυθμίσεις!#REF!,"") ->  | AH20: =IFERROR(AVERAGEIFS(tblClassScores[Βαθμολογία],tblClassScores[Μάθημα],Υπολογισμοί!$C20,tblClassScores[Τύπος],Υπολογισμοί!AH$5)*Ρυθμίσεις!#REF!,"") ->  | AI20: =IFERROR(AVERAGEIFS(tblClassScores[Βαθμολογία],tblClassScores[Μάθημα],Υπολογισμοί!$C20,tblClassScores[Τύπος],Υπολογισμοί!AI$5)*Ρυθμίσεις!#REF!,"") ->  | AJ20: 0 | AK20: =SUMIFS(Ρυθμίσεις!E23:K23,Υπολογισμοί!AC20:AI20,">0") -> 0
C21: =IF(Ρυθμίσεις!C24="","",Ρυθμίσεις!C24) ->  | AC21: =IFERROR(AVERAGEIFS(tblClassScores[Βαθμολογία],tblClassScores[Μάθημα],Υπολογισμοί!$C21,tblClassScores[Τύπος],Υπολογισμοί!AC$5)*Ρυθμίσεις!#REF!,"") ->  | AD21: =IFERROR(AVERAGEIFS(tblClassScores[Βαθμολογία],tblClassScores[Μάθημα],Υπολογισμοί!$C21,tblClassScores[Τύπος],Υπολογισμοί!AD$5)*Ρυθμίσεις!#REF!,"") ->  | AE21: =IFERROR(AVERAGEIFS(tblClassScores[Βαθμολογία],tblClassScores[Μάθημα],Υπολογισμοί!$C21,tblClassScores[Τύπος],Υπολογισμοί!AE$5)*Ρυθμίσεις!#REF!,"") ->  | AF21: =IFERROR(AVERAGEIFS(tblClassScores[Βαθμολογία],tblClassScores[Μάθημα],Υπολογισμοί!$C21,tblClassScores[Τύπος],Υπολογισμοί!AF$5)*Ρυθμίσεις!#REF!,"") ->  | AG21: =IFERROR(AVERAGEIFS(tblClassScores[Βαθμολογία],tblClassScores[Μάθημα],Υπολογισμοί!$C21,tblClassScores[Τύπος],Υπολογισμοί!AG$5)*Ρυθμίσεις!#REF!,"") ->  | AH21: =IFERROR(AVERAGEIFS(tblClassScores[Βαθμολογία],tblClassScores[Μάθημα],Υπολογισμοί!$C21,tblClassScores[Τύπος],Υπολογισμοί!AH$5)*Ρυθμίσεις!#REF!,"") ->  | AI21: =IFERROR(AVERAGEIFS(tblClassScores[Βαθμολογία],tblClassScores[Μάθημα],Υπολογισμοί!$C21,tblClassScores[Τύπος],Υπολογισμοί!AI$5)*Ρυθμίσεις!#REF!,"") ->  | AJ21: 0 | AK21: =SUMIFS(Ρυθμίσεις!E24:K24,Υπολογισμοί!AC21:AI21,">0") -> 0
C22: =IF(Ρυθμίσεις!C25="","",Ρυθμίσεις!C25) ->  | AC22: =IFERROR(AVERAGEIFS(tblClassScores[Βαθμολογία],tblClassScores[Μάθημα],Υπολογισμοί!$C22,tblClassScores[Τύπος],Υπολογισμοί!AC$5)*Ρυθμίσεις!#REF!,"") ->  | AD22: =IFERROR(AVERAGEIFS(tblClassScores[Βαθμολογία],tblClassScores[Μάθημα],Υπολογισμοί!$C22,tblClassScores[Τύπος],Υπολογισμοί!AD$5)*Ρυθμίσεις!#REF!,"") ->  | AE22: =IFERROR(AVERAGEIFS(tblClassScores[Βαθμολογία],tblClassScores[Μάθημα],Υπολογισμοί!$C22,tblClassScores[Τύπος],Υπολογισμοί!AE$5)*Ρυθμίσεις!#REF!,"") ->  | AF22: =IFERROR(AVERAGEIFS(tblClassScores[Βαθμολογία],tblClassScores[Μάθημα],Υπολογισμοί!$C22,tblClassScores[Τύπος],Υπολογισμοί!AF$5)*Ρυθμίσεις!#REF!,"") ->  | AG22: =IFERROR(AVERAGEIFS(tblClassScores[Βαθμολογία],tblClassScores[Μάθημα],Υπολογισμοί!$C22,tblClassScores[Τύπος],Υπολογισμοί!AG$5)*Ρυθμίσεις!#REF!,"") ->  | AH22: =IFERROR(AVERAGEIFS(tblClassScores[Βαθμολογία],tblClassScores[Μάθημα],Υπολογισμοί!$C22,tblClassScores[Τύπος],Υπολογισμοί!AH$5)*Ρυθμίσεις!#REF!,"") ->  | AI22: =IFERROR(AVERAGEIFS(tblClassScores[Βαθμολογία],tblClassScores[Μάθημα],Υπολογισμοί!$C22,tblClassScores[Τύπος],Υπολογισμοί!AI$5)*Ρυθμίσεις!#REF!,"") ->  | AJ22: 0 | AK22: =SUMIFS(Ρυθμίσεις!E25:K25,Υπολογισμοί!AC22:AI22,">0") -> 0
C23: =IF(Ρυθμίσεις!C26="","",Ρυθμίσεις!C26) ->  | AC23: =IFERROR(AVERAGEIFS(tblClassScores[Βαθμολογία],tblClassScores[Μάθημα],Υπολογισμοί!$C23,tblClassScores[Τύπος],Υπολογισμοί!AC$5)*Ρυθμίσεις!#REF!,"") ->  | AD23: =IFERROR(AVERAGEIFS(tblClassScores[Βαθμολογία],tblClassScores[Μάθημα],Υπολογισμοί!$C23,tblClassScores[Τύπος],Υπολογισμοί!AD$5)*Ρυθμίσεις!#REF!,"") ->  | AE23: =IFERROR(AVERAGEIFS(tblClassScores[Βαθμολογία],tblClassScores[Μάθημα],Υπολογισμοί!$C23,tblClassScores[Τύπος],Υπολογισμοί!AE$5)*Ρυθμίσεις!#REF!,"") ->  | AF23: =IFERROR(AVERAGEIFS(tblClassScores[Βαθμολογία],tblClassScores[Μάθημα],Υπολογισμοί!$C23,tblClassScores[Τύπος],Υπολογισμοί!AF$5)*Ρυθμίσεις!#REF!,"") ->  | AG23: =IFERROR(AVERAGEIFS(tblClassScores[Βαθμολογία],tblClassScores[Μάθημα],Υπολογισμοί!$C23,tblClassScores[Τύπος],Υπολογισμοί!AG$5)*Ρυθμίσεις!#REF!,"") ->  | AH23: =IFERROR(AVERAGEIFS(tblClassScores[Βαθμολογία],tblClassScores[Μάθημα],Υπολογισμοί!$C23,tblClassScores[Τύπος],Υπολογισμοί!AH$5)*Ρυθμίσεις!#REF!,"") ->  | AI23: =IFERROR(AVERAGEIFS(tblClassScores[Βαθμολογία],tblClassScores[Μάθημα],Υπολογισμοί!$C23,tblClassScores[Τύπος],Υπολογισμοί!AI$5)*Ρυθμίσεις!#REF!,"") ->  | AJ23: 0 | AK23: =SUMIFS(Ρυθμίσεις!E26:K26,Υπολογισμοί!AC23:AI23,">0") -> 0
C24: =IF(Ρυθμίσεις!C27="","",Ρυθμίσεις!C27) ->  | AC24: =IFERROR(AVERAGEIFS(tblClassScores[Βαθμολογία],tblClassScores[Μάθημα],Υπολογισμοί!$C24,tblClassScores[Τύπος],Υπολογισμοί!AC$5)*Ρυθμίσεις!#REF!,"") ->  | AD24: =IFERROR(AVERAGEIFS(tblClassScores[Βαθμολογία],tblClassScores[Μάθημα],Υπολογισμοί!$C24,tblClassScores[Τύπος],Υπολογισμοί!AD$5)*Ρυθμίσεις!#REF!,"") ->  | AE24: =IFERROR(AVERAGEIFS(tblClassScores[Βαθμολογία],tblClassScores[Μάθημα],Υπολογισμοί!$C24,tblClassScores[Τύπος],Υπολογισμοί!AE$5)*Ρυθμίσεις!#REF!,"") ->  | AF24: =IFERROR(AVERAGEIFS(tblClassScores[Βαθμολογία],tblClassScores[Μάθημα],Υπολογισμοί!$C24,tblClassScores[Τύπος],Υπολογισμοί!AF$5)*Ρυθμίσεις!#REF!,"") ->  | AG24: =IFERROR(AVERAGEIFS(tblClassScores[Βαθμολογία],tblClassScores[Μάθημα],Υπολογισμοί!$C24,tblClassScores[Τύπος],Υπολογισμοί!AG$5)*Ρυθμίσεις!#REF!,"") ->  | AH24: =IFERROR(AVERAGEIFS(tblClassScores[Βαθμολογία],tblClassScores[Μάθημα],Υπολογισμοί!$C24,tblClassScores[Τύπος],Υπολογισμοί!AH$5)*Ρυθμίσεις!#REF!,"") ->  | AI24: =IFERROR(AVERAGEIFS(tblClassScores[Βαθμολογία],tblClassScores[Μάθημα],Υπολογισμοί!$C24,tblClassScores[Τύπος],Υπολογισμοί!AI$5)*Ρυθμίσεις!#REF!,"") ->  | AJ24: 0 | AK24: =SUMIFS(Ρυθμίσεις!E27:K27,Υπολογισμοί!AC24:AI24,">0") -> 0
C25: =IF(Ρυθμίσεις!C28="","",Ρυθμίσεις!C28) ->  | AC25: =IFERROR(AVERAGEIFS(tblClassScores[Βαθμολογία],tblClassScores[Μάθημα],Υπολογισμοί!$C25,tblClassScores[Τύπος],Υπολογισμοί!AC$5)*Ρυθμίσεις!#REF!,"") ->  | AD25: =IFERROR(AVERAGEIFS(tblClassScores[Βαθμολογία],tblClassScores[Μάθημα],Υπολογισμοί!$C25,tblClassScores[Τύπος],Υπολογισμοί!AD$5)*Ρυθμίσεις!#REF!,"") ->  | AE25: =IFERROR(AVERAGEIFS(tblClassScores[Βαθμολογία],tblClassScores[Μάθημα],Υπολογισμοί!$C25,tblClassScores[Τύπος],Υπολογισμοί!AE$5)*Ρυθμίσεις!#REF!,"") ->  | AF25: =IFERROR(AVERAGEIFS(tblClassScores[Βαθμολογία],tblClassScores[Μάθημα],Υπολογισμοί!$C25,tblClassScores[Τύπος],Υπολογισμοί!AF$5)*Ρυθμίσεις!#REF!,"") ->  | AG25: =IFERROR(AVERAGEIFS(tblClassScores[Βαθμολογία],tblClassScores[Μάθημα],Υπολογισμοί!$C25,tblClassScores[Τύπος],Υπολογισμοί!AG$5)*Ρυθμίσεις!#REF!,"") ->  | AH25: =IFERROR(AVERAGEIFS(tblClassScores[Βαθμολογία],tblClassScores[Μάθημα],Υπολογισμοί!$C25,tblClassScores[Τύπος],Υπολογισμοί!AH$5)*Ρυθμίσεις!#REF!,"") ->  | AI25: =IFERROR(AVERAGEIFS(tblClassScores[Βαθμολογία],tblClassScores[Μάθημα],Υπολογισμοί!$C25,tblClassScores[Τύπος],Υπολογισμοί!AI$5)*Ρυθμίσεις!#REF!,"") ->  | AJ25: 0 | AK25: =SUMIFS(Ρυθμίσεις!E28:K28,Υπολογισμοί!AC25:AI25,">0") -> 0
C26: =IF(Ρυθμίσεις!C29="","",Ρυθμίσεις!C29) ->  | AC26: =IFERROR(AVERAGEIFS(tblClassScores[Βαθμολογία],tblClassScores[Μάθημα],Υπολογισμοί!$C26,tblClassScores[Τύπος],Υπολογισμοί!AC$5)*Ρυθμίσεις!#REF!,"") ->  | AD26: =IFERROR(AVERAGEIFS(tblClassScores[Βαθμολογία],tblClassScores[Μάθημα],Υπολογισμοί!$C26,tblClassScores[Τύπος],Υπολογισμοί!AD$5)*Ρυθμίσεις!#REF!,"") ->  | AE26: =IFERROR(AVERAGEIFS(tblClassScores[Βαθμολογία],tblClassScores[Μάθημα],Υπολογισμοί!$C26,tblClassScores[Τύπος],Υπολογισμοί!AE$5)*Ρυθμίσεις!#REF!,"") ->  | AF26: =IFERROR(AVERAGEIFS(tblClassScores[Βαθμολογία],tblClassScores[Μάθημα],Υπολογισμοί!$C26,tblClassScores[Τύπος],Υπολογισμοί!AF$5)*Ρυθμίσεις!#REF!,"") ->  | AG26: =IFERROR(AVERAGEIFS(tblClassScores[Βαθμολογία],tblClassScores[Μάθημα],Υπολογισμοί!$C26,tblClassScores[Τύπος],Υπολογισμοί!AG$5)*Ρυθμίσεις!#REF!,"") ->  | AH26: =IFERROR(AVERAGEIFS(tblClassScores[Βαθμολογία],tblClassScores[Μάθημα],Υπολογισμοί!$C26,tblClassScores[Τύπος],Υπολογισμοί!AH$5)*Ρυθμίσεις!#REF!,"") ->  | AI26: =IFERROR(AVERAGEIFS(tblClassScores[Βαθμολογία],tblClassScores[Μάθημα],Υπολογισμοί!$C26,tblClassScores[Τύπος],Υπολογισμοί!AI$5)*Ρυθμίσεις!#REF!,"") ->  | AJ26: 0 | AK26: =SUMIFS(Ρυθμίσεις!E29:K29,Υπολογισμοί!AC26:AI26,">0") -> 0
C27: =IF(Ρυθμίσεις!C30="","",Ρυθμίσεις!C30) ->  | AC27: =IFERROR(AVERAGEIFS(tblClassScores[Βαθμολογία],tblClassScores[Μάθημα],Υπολογισμοί!$C27,tblClassScores[Τύπος],Υπολογισμοί!AC$5)*Ρυθμίσεις!#REF!,"") ->  | AD27: =IFERROR(AVERAGEIFS(tblClassScores[Βαθμολογία],tblClassScores[Μάθημα],Υπολογισμοί!$C27,tblClassScores[Τύπος],Υπολογισμοί!AD$5)*Ρυθμίσεις!#REF!,"") ->  | AE27: =IFERROR(AVERAGEIFS(tblClassScores[Βαθμολογία],tblClassScores[Μάθημα],Υπολογισμοί!$C27,tblClassScores[Τύπος],Υπολογισμοί!AE$5)*Ρυθμίσεις!#REF!,"") ->  | AF27: =IFERROR(AVERAGEIFS(tblClassScores[Βαθμολογία],tblClassScores[Μάθημα],Υπολογισμοί!$C27,tblClassScores[Τύπος],Υπολογισμοί!AF$5)*Ρυθμίσεις!#REF!,"") ->  | AG27: =IFERROR(AVERAGEIFS(tblClassScores[Βαθμολογία],tblClassScores[Μάθημα],Υπολογισμοί!$C27,tblClassScores[Τύπος],Υπολογισμοί!AG$5)*Ρυθμίσεις!#REF!,"") ->  | AH27: =IFERROR(AVERAGEIFS(tblClassScores[Βαθμολογία],tblClassScores[Μάθημα],Υπολογισμοί!$C27,tblClassScores[Τύπος],Υπολογισμοί!AH$5)*Ρυθμίσεις!#REF!,"") ->  | AI27: =IFERROR(AVERAGEIFS(tblClassScores[Βαθμολογία],tblClassScores[Μάθημα],Υπολογισμοί!$C27,tblClassScores[Τύπος],Υπολογισμοί!AI$5)*Ρυθμίσεις!#REF!,"") ->  | AJ27: 0 | AK27: =SUMIFS(Ρυθμίσεις!E30:K30,Υπολογισμοί!AC27:AI27,">0") -> 0
C28: =IF(Ρυθμίσεις!C31="","",Ρυθμίσεις!C31) ->  | AC28: =IFERROR(AVERAGEIFS(tblClassScores[Βαθμολογία],tblClassScores[Μάθημα],Υπολογισμοί!$C28,tblClassScores[Τύπος],Υπολογισμοί!AC$5)*Ρυθμίσεις!#REF!,"") ->  | AD28: =IFERROR(AVERAGEIFS(tblClassScores[Βαθμολογία],tblClassScores[Μάθημα],Υπολογισμοί!$C28,tblClassScores[Τύπος],Υπολογισμοί!AD$5)*Ρυθμίσεις!#REF!,"") ->  | AE28: =IFERROR(AVERAGEIFS(tblClassScores[Βαθμολογία],tblClassScores[Μάθημα],Υπολογισμοί!$C28,tblClassScores[Τύπος],Υπολογισμοί!AE$5)*Ρυθμίσεις!#REF!,"") ->  | AF28: =IFERROR(AVERAGEIFS(tblClassScores[Βαθμολογία],tblClassScores[Μάθημα],Υπολογισμοί!$C28,tblClassScores[Τύπος],Υπολογισμοί!AF$5)*Ρυθμίσεις!#REF!,"") ->  | AG28: =IFERROR(AVERAGEIFS(tblClassScores[Βαθμολογία],tblClassScores[Μάθημα],Υπολογισμοί!$C28,tblClassScores[Τύπος],Υπολογισμοί!AG$5)*Ρυθμίσεις!#REF!,"") ->  | AH28: =IFERROR(AVERAGEIFS(tblClassScores[Βαθμολογία],tblClassScores[Μάθημα],Υπολογισμοί!$C28,tblClassScores[Τύπος],Υπολογισμοί!AH$5)*Ρυθμίσεις!#REF!,"") ->  | AI28: =IFERROR(AVERAGEIFS(tblClassScores[Βαθμολογία],tblClassScores[Μάθημα],Υπολογισμοί!$C28,tblClassScores[Τύπος],Υπολογισμοί!AI$5)*Ρυθμίσεις!#REF!,"") ->  | AJ28: 0 | AK28: =SUMIFS(Ρυθμίσεις!E31:K31,Υπολογισμοί!AC28:AI28,">0") -> 0
C29: =IF(Ρυθμίσεις!C32="","",Ρυθμίσεις!C32) ->  | AC29: =IFERROR(AVERAGEIFS(tblClassScores[Βαθμολογία],tblClassScores[Μάθημα],Υπολογισμοί!$C29,tblClassScores[Τύπος],Υπολογισμοί!AC$5)*Ρυθμίσεις!#REF!,"") ->  | AD29: =IFERROR(AVERAGEIFS(tblClassScores[Βαθμολογία],tblClassScores[Μάθημα],Υπολογισμοί!$C29,tblClassScores[Τύπος],Υπολογισμοί!AD$5)*Ρυθμίσεις!#REF!,"") ->  | AE29: =IFERROR(AVERAGEIFS(tblClassScores[Βαθμολογία],tblClassScores[Μάθημα],Υπολογισμοί!$C29,tblClassScores[Τύπος],Υπολογισμοί!AE$5)*Ρυθμίσεις!#REF!,"") ->  | AF29: =IFERROR(AVERAGEIFS(tblClassScores[Βαθμολογία],tblClassScores[Μάθημα],Υπολογισμοί!$C29,tblClassScores[Τύπος],Υπολογισμοί!AF$5)*Ρυθμίσεις!#REF!,"") ->  | AG29: =IFERROR(AVERAGEIFS(tblClassScores[Βαθμολογία],tblClassScores[Μάθημα],Υπολογισμοί!$C29,tblClassScores[Τύπος],Υπολογισμοί!AG$5)*Ρυθμίσεις!#REF!,"") ->  | AH29: =IFERROR(AVERAGEIFS(tblClassScores[Βαθμολογία],tblClassScores[Μάθημα],Υπολογισμοί!$C29,tblClassScores[Τύπος],Υπολογισμοί!AH$5)*Ρυθμίσεις!#REF!,"") ->  | AI29: =IFERROR(AVERAGEIFS(tblClassScores[Βαθμολογία],tblClassScores[Μάθημα],Υπολογισμοί!$C29,tblClassScores[Τύπος],Υπολογισμοί!AI$5)*Ρυθμίσεις!#REF!,"") ->  | AJ29: 0 | AK29: =SUMIFS(Ρυθμίσεις!E32:K32,Υπολογισμοί!AC29:AI29,">0") -> 0
C30: =IF(Ρυθμίσεις!C33="","",Ρυθμίσεις!C33) ->  | AC30: =IFERROR(AVERAGEIFS(tblClassScores[Βαθμολογία],tblClassScores[Μάθημα],Υπολογισμοί!$C30,tblClassScores[Τύπος],Υπολογισμοί!AC$5)*Ρυθμίσεις!#REF!,"") ->  | AD30: =IFERROR(AVERAGEIFS(tblClassScores[Βαθμολογία],tblClassScores[Μάθημα],Υπολογισμοί!$C30,tblClassScores[Τύπος],Υπολογισμοί!AD$5)*Ρυθμίσεις!#REF!,"") ->  | AE30: =IFERROR(AVERAGEIFS(tblClassScores[Βαθμολογία],tblClassScores[Μάθημα],Υπολογισμοί!$C30,tblClassScores[Τύπος],Υπολογισμοί!AE$5)*Ρυθμίσεις!#REF!,"") ->  | AF30: =IFERROR(AVERAGEIFS(tblClassScores[Βαθμολογία],tblClassScores[Μάθημα],Υπολογισμοί!$C30,tblClassScores[Τύπος],Υπολογισμοί!AF$5)*Ρυθμίσεις!#REF!,"") ->  | AG30: =IFERROR(AVERAGEIFS(tblClassScores[Βαθμολογία],tblClassScores[Μάθημα],Υπολογισμοί!$C30,tblClassScores[Τύπος],Υπολογισμοί!AG$5)*Ρυθμίσεις!#REF!,"") ->  | AH30: =IFERROR(AVERAGEIFS(tblClassScores[Βαθμολογία],tblClassScores[Μάθημα],Υπολογισμοί!$C30,tblClassScores[Τύπος],Υπολογισμοί!AH$5)*Ρυθμίσεις!#REF!,"") ->  | AI30: =IFERROR(AVERAGEIFS(tblClassScores[Βαθμολογία],tblClassScores[Μάθημα],Υπολογισμοί!$C30,tblClassScores[Τύπος],Υπολογισμοί!AI$5)*Ρυθμίσεις!#REF!,"") ->  | AJ30: 0 | AK30: =SUMIFS(Ρυθμίσεις!E33:K33,Υπολογισμοί!AC30:AI30,">0") -> 0
B33: 1 | C33: ='Παρακολούθηση βαθμολογίας'!C4&COUNTIF('Παρακολούθηση βαθμολογίας'!$C$4:C4,'Παρακολούθηση βαθμολογίας'!C4) -> Γαλλικά1
B34: 2 | C34: ='Παρακολούθηση βαθμολογίας'!C5&COUNTIF('Παρακολούθηση βαθμολογίας'!$C$4:C5,'Παρακολούθηση βαθμολογίας'!C5) -> Προχωρημένος προγραμματισμός σε Java1
B35: 3 | C35: ='Παρακολούθηση βαθμολογίας'!C6&COUNTIF('Παρακολούθηση βαθμολογίας'!$C$4:C6,'Παρακολούθηση βαθμολογίας'!C6) -> Ισπανικά1
B36: 4 | C36: ='Παρακολούθηση βαθμολογίας'!C7&COUNTIF('Παρακολούθηση βαθμολογίας'!$C$4:C7,'Παρακολούθηση βαθμολογίας'!C7) -> Θεωρητική Φυσική1
B37: 5 | C37: ='Παρακολούθηση βαθμολογίας'!C8&COUNTIF('Παρακολούθηση βαθμολογίας'!$C$4:C8,'Παρακολούθηση βαθμολογίας'!C8) -> Γαλλικά2
B38: 6 | C38: ='Παρακολούθηση βαθμολογίας'!C9&COUNTIF('Παρακολούθηση βαθμολογίας'!$C$4:C9,'Παρακολούθηση βαθμολογίας'!C9) -> Γαλλικά3
B39: 7 | C39: ='Παρακολούθηση βαθμολογίας'!C10&COUNTIF('Παρακολούθηση βαθμολογίας'!$C$4:C10,'Παρακολούθηση βαθμολογίας'!C10) -> Έκθεση1
B40: 8 | C40: ='Παρακολούθηση βαθμολογίας'!C11&COUNTIF('Παρακολούθηση βαθμολογίας'!$C$4:C11,'Παρακολούθηση βαθμολογίας'!C11) -> Μαθηματικά 11
B41: 9 | C41: ='Παρακολούθηση βαθμολογίας'!C12&COUNTIF('Παρακολούθηση βαθμολογίας'!$C$4:C12,'Παρακολούθηση βαθμολογίας'!C12) -> Μαθηματικά 21
B42: 10 | C42: ='Παρακολούθηση βαθμολογίας'!C13&COUNTIF('Παρακολούθηση βαθμολογίας'!$C$4:C14,'Παρακολούθηση βαθμολογίας'!C13) -> Μαθηματικά 12
B43: 11 | C43: ='Παρακολούθηση βαθμολογίας'!C14&COUNTIF('Παρακολούθηση βαθμολογίας'!$C$4:C14,'Παρακολούθηση βαθμολογίας'!C14) -> Μαθηματικά 22
B44: 12 | C44: ='Παρακολούθηση βαθμολογίας'!C15&COUNTIF('Παρακολούθηση βαθμολογίας'!$C$4:C15,'Παρακολούθηση βαθμολογίας'!C15) -> 0
B45: 13 | C45: ='Παρακολούθηση βαθμολογίας'!C16&COUNTIF('Παρακολούθηση βαθμολογίας'!$C$4:C16,'Παρακολούθηση βαθμολογίας'!C16) -> 0
B46: 14 | C46: ='Παρακολούθηση βαθμολογίας'!C17&COUNTIF('Παρακολούθηση βαθμολογίας'!$C$4:C17,'Παρακολούθηση βαθμολογίας'!C17) -> 0
B47: 15 | C47: ='Παρακολούθηση βαθμολογίας'!C18&COUNTIF('Παρακολούθηση βαθμολογίας'!$C$4:C18,'Παρακολούθηση βαθμολογίας'!C18) -> 0
B48: 16 | C48: ='Παρακολούθηση βαθμολογίας'!C19&COUNTIF('Παρακολούθηση βαθμολογίας'!$C$4:C19,'Παρακολούθηση βαθμολογίας'!C19) -> 0
B49: 17 | C49: ='Παρακολούθηση βαθμολογίας'!C20&COUNTIF('Παρακολούθηση βαθμολογίας'!$C$4:C20,'Παρακολούθηση βαθμολογίας'!C20) -> 0
B50: 18 | C50: ='Παρακολούθηση βαθμολογίας'!C21&COUNTIF('Παρακολούθηση βαθμολογίας'!$C$4:C21,'Παρακολούθηση βαθμολογίας'!C21) -> 0
B51: 19 | C51: ='Παρακολούθηση βαθμολογίας'!C22&COUNTIF('Παρακολούθηση βαθμολογίας'!$C$4:C22,'Παρακολούθηση βαθμολογίας'!C22) -> 0
B52: 20 | C52: ='Παρακολούθηση βαθμολογίας'!C23&COUNTIF('Παρακολούθηση βαθμολογίας'!$C$4:C23,'Παρακολούθηση βαθμολογίας'!C23) -> 0
B53: 21 | C53: ='Παρακολούθηση βαθμολογίας'!C24&COUNTIF('Παρακολούθηση βαθμολογίας'!$C$4:C24,'Παρακολούθηση βαθμολογίας'!C24) -> 0
B54: 22 | C54: ='Παρακολούθηση βαθμολογίας'!C25&COUNTIF('Παρακολούθηση βαθμολογίας'!$C$4:C25,'Παρακολούθηση βαθμολογίας'!C25) -> 0
B55: 23 | C55: ='Παρακολούθηση βαθμολογίας'!C26&COUNTIF('Παρακολούθηση βαθμολογίας'!$C$4:C26,'Παρακολούθηση βαθμολογίας'!C26) -> 0
B56: 24 | C56: ='Παρακολούθηση βαθμολογίας'!C27&COUNTIF('Παρακολούθηση βαθμολογίας'!$C$4:C27,'Παρακολούθηση βαθμολογίας'!C27) -> 0
B57: 25 | C57: ='Παρακολούθηση βαθμολογίας'!C28&COUNTIF('Παρακολούθηση βαθμολογίας'!$C$4:C28,'Παρακολούθηση βαθμολογίας'!C28) -> 0
B58: 26 | C58: ='Παρακολούθηση βαθμολογίας'!C29&COUNTIF('Παρακολούθηση βαθμολογίας'!$C$4:C29,'Παρακολούθηση βαθμολογίας'!C29) -> 0
B59: 27 | C59: ='Παρακολούθηση βαθμολογίας'!C30&COUNTIF('Παρακολούθηση βαθμολογίας'!$C$4:C30,'Παρακολούθηση βαθμολογίας'!C30) -> 0
B60: 28 | C60: ='Παρακολούθηση βαθμολογίας'!C31&COUNTIF('Παρακολούθηση βαθμολογίας'!$C$4:C31,'Παρακολούθηση βαθμολογίας'!C31) -> 0
B61: 29 | C61: ='Παρακολούθηση βαθμολογίας'!C32&COUNTIF('Παρακολούθηση βαθμολογίας'!$C$4:C32,'Παρακολούθηση βαθμολογίας'!C32) -> 0
B62: 30 | C62: ='Παρακολούθηση βαθμολογίας'!C33&COUNTIF('Παρακολούθηση βαθμολογίας'!$C$4:C33,'Παρακολούθηση βαθμολογίας'!C33) -> 0
B63: 31 | C63: ='Παρακολούθηση βαθμολογίας'!C34&COUNTIF('Παρακολούθηση βαθμολογίας'!$C$4:C34,'Παρακολούθηση βαθμολογίας'!C34) -> 0
B64: 32 | C64: ='Παρακολούθηση βαθμολογίας'!C35&COUNTIF('Παρακολούθηση βαθμολογίας'!$C$4:C35,'Παρακολούθηση βαθμολογίας'!C35) -> 0
B65: 33 | C65: ='Παρακολούθηση βαθμολογίας'!C36&COUNTIF('Παρακολούθηση βαθμολογίας'!$C$4:C36,'Παρακολούθηση βαθμολογίας'!C36) -> 0
B66: 34 | C66: ='Παρακολούθηση βαθμολογίας'!C37&COUNTIF('Παρακολούθηση βαθμολογίας'!$C$4:C37,'Παρακολούθηση βαθμολογίας'!C37) -> 0
B67: 35 | C67: ='Παρακολούθηση βαθμολογίας'!C38&COUNTIF('Παρακολούθηση βαθμολογίας'!$C$4:C38,'Παρακολούθηση βαθμολογίας'!C38) -> 0
B68: 36 | C68: ='Παρακολούθηση βαθμολογίας'!C39&COUNTIF('Παρακολούθηση βαθμολογίας'!$C$4:C39,'Παρακολούθηση βαθμολογίας'!C39) -> 0
B69: 37 | C69: ='Παρακολούθηση βαθμολογίας'!C40&COUNTIF('Παρακολούθηση βαθμολογίας'!$C$4:C40,'Παρακολούθηση βαθμολογίας'!C40) -> 0
B70: 38 | C70: ='Παρακολούθηση βαθμολογίας'!C41&COUNTIF('Παρακολούθηση βαθμολογίας'!$C$4:C41,'Παρακολούθηση βαθμολογίας'!C41) -> 0
B71: 39 | C71: ='Παρακολούθηση βαθμολογίας'!C42&COUNTIF('Παρακολούθηση βαθμολογίας'!$C$4:C42,'Παρακολούθηση βαθμολογίας'!C42) -> 0
B72: 40 | C72: ='Παρακολούθηση βαθμολογίας'!C43&COUNTIF('Παρακολούθηση βαθμολογίας'!$C$4:C43,'Παρακολούθηση βαθμολογίας'!C43) -> 0
B73: 41 | C73: ='Παρακολούθηση βαθμολογίας'!C44&COUNTIF('Παρακολούθηση βαθμολογίας'!$C$4:C44,'Παρακολούθηση βαθμολογίας'!C44) -> 0
B74: 42 | C74: ='Παρακολούθηση βαθμολογίας'!C45&COUNTIF('Παρακολούθηση βαθμολογίας'!$C$4:C45,'Παρακολούθηση βαθμολογίας'!C45) -> 0
B75: 43 | C75: ='Παρακολούθηση βαθμολογίας'!C46&COUNTIF('Παρακολούθηση βαθμολογίας'!$C$4:C46,'Παρακολούθηση βαθμολογίας'!C46) -> 0
B76: 44 | C76: ='Παρακολούθηση βαθμολογίας'!C47&COUNTIF('Παρακολούθηση βαθμολογίας'!$C$4:C47,'Παρακολούθηση βαθμολογίας'!C47) -> 0
B77: 45 | C77: ='Παρακολούθηση βαθμολογίας'!C48&COUNTIF('Παρακολούθηση βαθμολογίας'!$C$4:C48,'Παρακολούθηση βαθμολογίας'!C48) -> 0
B78: 46 | C78: ='Παρακολούθηση βαθμολογίας'!C49&COUNTIF('Παρακολούθηση βαθμολογίας'!$C$4:C49,'Παρακολούθηση βαθμολογίας'!C49) -> 0
B79: 47 | C79: ='Παρακολούθηση βαθμολογίας'!C50&COUNTIF('Παρακολούθηση βαθμολογίας'!$C$4:C50,'Παρακολούθηση βαθμολογίας'!C50) -> 0
B80: 48 | C80: ='Παρακολούθηση βαθμολογίας'!C51&COUNTIF('Παρακολούθηση βαθμολογίας'!$C$4:C51,'Παρακολούθηση βαθμολογίας'!C51) -> 0
B81: 49 | C81: ='Παρακολούθηση βαθμολογίας'!C52&COUNTIF('Παρακολούθηση βαθμολογίας'!$C$4:C52,'Παρακολούθηση βαθμολογίας'!C52) -> 0
B82: 50 | C82: ='Παρακολούθηση βαθμολογίας'!C53&COUNTIF('Παρακολούθηση βαθμολογίας'!$C$4:C53,'Παρακολούθηση βαθμολογίας'!C53) -> 0
B83: 51 | C83: ='Παρακολούθηση βαθμολογίας'!C54&COUNTIF('Παρακολούθηση βαθμολογίας'!$C$4:C54,'Παρακολούθηση βαθμολογίας'!C54) -> 0
B84: 52 | C84: ='Παρακολούθηση βαθμολογίας'!C55&COUNTIF('Παρακολούθηση βαθμολογίας'!$C$4:C55,'Παρακολούθηση βαθμολογίας'!C55) -> 0
B85: 53 | C85: ='Παρακολούθηση βαθμολογίας'!C56&COUNTIF('Παρακολούθηση βαθμολογίας'!$C$4:C56,'Παρακολούθηση βαθμολογίας'!C56) -> 0
B86: 54 | C86: ='Παρακολούθηση βαθμολογίας'!C57&COUNTIF('Παρακολούθηση βαθμολογίας'!$C$4:C57,'Παρακολούθηση βαθμολογίας'!C57) -> 0
B87: 55 | C87: ='Παρακολούθηση βαθμολογίας'!C58&COUNTIF('Παρακολούθηση βαθμολογίας'!$C$4:C58,'Παρακολούθηση βαθμολογίας'!C58) -> 0
B88: 56 | C88: ='Παρακολούθηση βαθμολογίας'!C59&COUNTIF('Παρακολούθηση βαθμολογίας'!$C$4:C59,'Παρακολούθηση βαθμολογίας'!C59) -> 0
B89: 57 | C89: ='Παρακολούθηση βαθμολογίας'!C60&COUNTIF('Παρακολούθηση βαθμολογίας'!$C$4:C60,'Παρακολούθηση βαθμολογίας'!C60) -> 0
B90: 58 | C90: ='Παρακολούθηση βαθμολογίας'!C61&COUNTIF('Παρακολούθηση βαθμολογίας'!$C$4:C61,'Παρακολούθηση βαθμολογίας'!C61) -> 0
B91: 59 | C91: ='Παρακολούθηση βαθμολογίας'!C62&COUNTIF('Παρακολούθηση βαθμολογίας'!$C$4:C62,'Παρακολούθηση βαθμολογίας'!C62) -> 0
B92: 60 | C92: ='Παρακολούθηση βαθμολογίας'!C63&COUNTIF('Παρακολούθηση βαθμολογίας'!$C$4:C63,'Παρακολούθηση βαθμολογίας'!C63) -> 0
B93: 61 | C93: ='Παρακολούθηση βαθμολογίας'!C64&COUNTIF('Παρακολούθηση βαθμολογίας'!$C$4:C64,'Παρακολούθηση βαθμολογίας'!C64) -> 0
B94: 62 | C94: ='Παρακολούθηση βαθμολογίας'!C65&COUNTIF('Παρακολούθηση βαθμολογίας'!$C$4:C65,'Παρακολούθηση βαθμολογίας'!C65) -> 0
B95: 63 | C95: ='Παρακολούθηση βαθμολογίας'!C66&COUNTIF('Παρακολούθηση βαθμολογίας'!$C$4:C66,'Παρακολούθηση βαθμολογίας'!C66) -> 0
B96: 64 | C96: ='Παρακολούθηση βαθμολογίας'!C67&COUNTIF('Παρακολούθηση βαθμολογίας'!$C$4:C67,'Παρακολούθηση βαθμολογίας'!C67) -> 0
B97: 65 | C97: ='Παρακολούθηση βαθμολογίας'!C68&COUNTIF('Παρακολούθηση βαθμολογίας'!$C$4:C68,'Παρακολούθηση βαθμολογίας'!C68) -> 0
B98: 66 | C98: ='Παρακολούθηση βαθμολογίας'!C69&COUNTIF('Παρακολούθηση βαθμολογίας'!$C$4:C69,'Παρακολούθηση βαθμολογίας'!C69) -> 0
B99: 67 | C99: ='Παρακολούθηση βαθμολογίας'!C70&COUNTIF('Παρακολούθηση βαθμολογίας'!$C$4:C70,'Παρακολούθηση βαθμολογίας'!C70) -> 0
B100: 68 | C100: ='Παρακολούθηση βαθμολογίας'!C71&COUNTIF('Παρακολούθηση βαθμολογίας'!$C$4:C71,'Παρακολούθηση βαθμολογίας'!C71) -> 0
B101: 69 | C101: ='Παρακολούθηση βαθμολογίας'!C72&COUNTIF('Παρακολούθηση βαθμολογίας'!$C$4:C72,'Παρακολούθηση βαθμολογίας'!C72) -> 0
B102: 70 | C102: ='Παρακολούθηση βαθμολογίας'!C73&COUNTIF('Παρακολούθηση βαθμολογίας'!$C$4:C73,'Παρακολούθηση βαθμολογίας'!C73) -> 0
B103: 71 | C103: ='Παρακολούθηση βαθμολογίας'!C74&COUNTIF('Παρακολούθηση βαθμολογίας'!$C$4:C74,'Παρακολούθηση βαθμολογίας'!C74) -> 0
B104: 72 | C104: ='Παρακολούθηση βαθμολογίας'!C75&COUNTIF('Παρακολούθηση βαθμολογίας'!$C$4:C75,'Παρακολούθηση βαθμολογίας'!C75) -> 0
B105: 73 | C105: ='Παρακολούθηση βαθμολογίας'!C76&COUNTIF('Παρακολούθηση βαθμολογίας'!$C$4:C76,'Παρακολούθηση βαθμολογίας'!C76) -> 0
B106: 74 | C106: ='Παρακολούθηση βαθμολογίας'!C77&COUNTIF('Παρακολούθηση βαθμολογίας'!$C$4:C77,'Παρακολούθηση βαθμολογίας'!C77) -> 0
B107: 75 | C107: ='Παρακολούθηση βαθμολογίας'!C78&COUNTIF('Παρακολούθηση βαθμολογίας'!$C$4:C78,'Παρακολούθηση βαθμολογίας'!C78) -> 0
B108: 76 | C108: ='Παρακολούθηση βαθμολογίας'!C79&COUNTIF('Παρακολούθηση βαθμολογίας'!$C$4:C79,'Παρακολούθηση βαθμολογίας'!C79) -> 0
B109: 77 | C109: ='Παρακολούθηση βαθμολογίας'!C80&COUNTIF('Παρακολούθηση βαθμολογίας'!$C$4:C80,'Παρακολούθηση βαθμολογίας'!C80) -> 0
B110: 78 | C110: ='Παρακολούθηση βαθμολογίας'!C81&COUNTIF('Παρακολούθηση βαθμολογίας'!$C$4:C81,'Παρακολούθηση βαθμολογίας'!C81) -> 0
B111: 79 | C111: ='Παρακολούθηση βαθμολογίας'!C82&COUNTIF('Παρακολούθηση βαθμολογίας'!$C$4:C82,'Παρακολούθηση βαθμολογίας'!C82) -> 0
B112: 80 | C112: ='Παρακολούθηση βαθμολογίας'!C83&COUNTIF('Παρακολούθηση βαθμολογίας'!$C$4:C83,'Παρακολούθηση βαθμολογίας'!C83) -> 0
B113: 81 | C113: ='Παρακολούθηση βαθμολογίας'!C84&COUNTIF('Παρακολούθηση βαθμολογίας'!$C$4:C84,'Παρακολούθηση βαθμολογίας'!C84) -> 0
B114: 82 | C114: ='Παρακολούθηση βαθμολογίας'!C85&COUNTIF('Παρακολούθηση βαθμολογίας'!$C$4:C85,'Παρακολούθηση βαθμολογίας'!C85) -> 0
B115: 83 | C115: ='Παρακολούθηση βαθμολογίας'!C86&COUNTIF('Παρακολούθηση βαθμολογίας'!$C$4:C86,'Παρακολούθηση βαθμολογίας'!C86) -> 0
B116: 84 | C116: ='Παρακολούθηση βαθμολογίας'!C87&COUNTIF('Παρακολούθηση βαθμολογίας'!$C$4:C87,'Παρακολούθηση βαθμολογίας'!C87) -> 0
B117: 85 | C117: ='Παρακολούθηση βαθμολογίας'!C88&COUNTIF('Παρακολούθηση βαθμολογίας'!$C$4:C88,'Παρακολούθηση βαθμολογίας'!C88) -> 0
B118: 86 | C118: ='Παρακολούθηση βαθμολογίας'!C89&COUNTIF('Παρακολούθηση βαθμολογίας'!$C$4:C89,'Παρακολούθηση βαθμολογίας'!C89) -> 0
B119: 87 | C119: ='Παρακολούθηση βαθμολογίας'!C90&COUNTIF('Παρακολούθηση βαθμολογίας'!$C$4:C90,'Παρακολούθηση βαθμολογίας'!C90) -> 0
B120: 88 | C120: ='Παρακολούθηση βαθμολογίας'!C91&COUNTIF('Παρακολούθηση βαθμολογίας'!$C$4:C91,'Παρακολούθηση βαθμολογίας'!C91) -> 0
B121: 89 | C121: ='Παρακολούθηση βαθμολογίας'!C92&COUNTIF('Παρακολούθηση βαθμολογίας'!$C$4:C92,'Παρακολούθηση βαθμολογίας'!C92) -> 0
B122: 90 | C122: ='Παρακολούθηση βαθμολογίας'!C93&COUNTIF('Παρακολούθηση βαθμολογίας'!$C$4:C93,'Παρακολούθηση βαθμολογίας'!C93) -> 0
B123: 91 | C123: ='Παρακολούθηση βαθμολογίας'!C94&COUNTIF('Παρακολούθηση βαθμολογίας'!$C$4:C94,'Παρακολούθηση βαθμολογίας'!C94) -> 0
B124: 92 | C124: ='Παρακολούθηση βαθμολογίας'!C95&COUNTIF('Παρακολούθηση βαθμολογίας'!$C$4:C95,'Παρακολούθηση βαθμολογίας'!C95) -> 0
B125: 93 | C125: ='Παρακολούθηση βαθμολογίας'!C96&COUNTIF('Παρακολούθηση βαθμολογίας'!$C$4:C96,'Παρακολούθηση βαθμολογίας'!C96) -> 0
B126: 94 | C126: ='Παρακολούθηση βαθμολογίας'!C97&COUNTIF('Παρακολούθηση βαθμολογίας'!$C$4:C97,'Παρακολούθηση βαθμολογίας'!C97) -> 0
B127: 95 | C127: ='Παρακολούθηση βαθμολογίας'!C98&COUNTIF('Παρακολούθηση βαθμολογίας'!$C$4:C98,'Παρακολούθηση βαθμολογίας'!C98) -> 0
B128: 96 | C128: ='Παρακολούθηση βαθμολογίας'!C99&COUNTIF('Παρακολούθηση βαθμολογίας'!$C$4:C99,'Παρακολούθηση βαθμολογίας'!C99) -> 0
B129: 97 | C129: ='Παρακολούθηση βαθμολογίας'!C100&COUNTIF('Παρακολούθηση βαθμολογίας'!$C$4:C100,'Παρακολούθηση βαθμολογίας'!C100) -> 0
B130: 98 | C130: ='Παρακολούθηση βαθμολογίας'!C101&COUNTIF('Παρακολούθηση βαθμολογίας'!$C$4:C101,'Παρακολούθηση βαθμολογίας'!C101) -> 0
B131: 99 | C131: ='Παρακολούθηση βαθμολογίας'!C102&COUNTIF('Παρακολούθηση βαθμολογίας'!$C$4:C102,'Παρακολούθηση βαθμολογίας'!C102) -> 0
B132: 100 | C132: ='Παρακολούθηση βαθμολογίας'!C103&COUNTIF('Παρακολούθηση βαθμολογίας'!$C$4:C103,'Παρακολούθηση βαθμολογίας'!C103) -> 0
B133: 101 | C133: ='Παρακολούθηση βαθμολογίας'!C104&COUNTIF('Παρακολούθηση βαθμολογίας'!$C$4:C104,'Παρακολούθηση βαθμολογίας'!C104) -> 0
B134: 102 | C134: ='Παρακολούθηση βαθμολογίας'!C105&COUNTIF('Παρακολούθηση βαθμολογίας'!$C$4:C105,'Παρακολούθηση βαθμολογίας'!C105) -> 0
B135: 103 | C135: ='Παρακολούθηση βαθμολογίας'!C106&COUNTIF('Παρακολούθηση βαθμολογίας'!$C$4:C106,'Παρακολούθηση βαθμολογίας'!C106) -> 0
B136: 104 | C136: ='Παρακολούθηση βαθμολογίας'!C107&COUNTIF('Παρακολούθηση βαθμολογίας'!$C$4:C107,'Παρακολούθηση βαθμολογίας'!C107) -> 0
B137: 105 | C137: ='Παρακολούθηση βαθμολογίας'!C108&COUNTIF('Παρακολούθηση βαθμολογίας'!$C$4:C108,'Παρακολούθηση βαθμολογίας'!C108) -> 0
B138: 106 | C138: ='Παρακολούθηση βαθμολογίας'!C109&COUNTIF('Παρακολούθηση βαθμολογίας'!$C$4:C109,'Παρακολούθηση βαθμολογίας'!C109) -> 0
B139: 107 | C139: ='Παρακολούθηση βαθμολογίας'!C110&COUNTIF('Παρακολούθηση βαθμολογίας'!$C$4:C110,'Παρακολούθηση βαθμολογίας'!C110) -> 0
B140: 108 | C140: ='Παρακολούθηση βαθμολογίας'!C111&COUNTIF('Παρακολούθηση βαθμολογίας'!$C$4:C111,'Παρακολούθηση βαθμολογίας'!C111) -> 0
B141: 109 | C141: ='Παρακολούθηση βαθμολογίας'!C112&COUNTIF('Παρακολούθηση βαθμολογίας'!$C$4:C112,'Παρακολούθηση βαθμολογίας'!C112) -> 0
B142: 110 | C142: ='Παρακολούθηση βαθμολογίας'!C113&COUNTIF('Παρακολούθηση βαθμολογίας'!$C$4:C113,'Παρακολούθηση βαθμολογίας'!C113) -> 0
B143: 111 | C143: ='Παρακολούθηση βαθμολογίας'!C114&COUNTIF('Παρακολούθηση βαθμολογίας'!$C$4:C114,'Παρακολούθηση βαθμολογίας'!C114) -> 0
B144: 112 | C144: ='Παρακολούθηση βαθμολογίας'!C115&COUNTIF('Παρακολούθηση βαθμολογίας'!$C$4:C115,'Παρακολούθηση βαθμολογίας'!C115) -> 0
B145: 113 | C145: ='Παρακολούθηση βαθμολογίας'!C116&COUNTIF('Παρακολούθηση βαθμολογίας'!$C$4:C116,'Παρακολούθηση βαθμολογίας'!C116) -> 0
B146: 114 | C146: ='Παρακολούθηση βαθμολογίας'!C117&COUNTIF('Παρακολούθηση βαθμολογίας'!$C$4:C117,'Παρακολούθηση βαθμολογίας'!C117) -> 0
B147: 115 | C147: ='Παρακολούθηση βαθμολογίας'!C118&COUNTIF('Παρακολούθηση βαθμολογίας'!$C$4:C118,'Παρακολούθηση βαθμολογίας'!C118) -> 0
B148: 116 | C148: ='Παρακολούθηση βαθμολογίας'!C119&COUNTIF('Παρακολούθηση βαθμολογίας'!$C$4:C119,'Παρακολούθηση βαθμολογίας'!C119) -> 0
B149: 117 | C149: ='Παρακολούθηση βαθμολογίας'!C120&COUNTIF('Παρακολούθηση βαθμολογίας'!$C$4:C120,'Παρακολούθηση βαθμολογίας'!C120) -> 0
B150: 118 | C150: ='Παρακολούθηση βαθμολογίας'!C121&COUNTIF('Παρακολούθηση βαθμολογίας'!$C$4:C121,'Παρακολούθηση βαθμολογίας'!C121) -> 0
B151: 119 | C151: ='Παρακολούθηση βαθμολογίας'!C122&COUNTIF('Παρακολούθηση βαθμολογίας'!$C$4:C122,'Παρακολούθηση βαθμολογίας'!C122) -> 0
B152: 120 | C152: ='Παρακολούθηση βαθμολογίας'!C123&COUNTIF('Παρακολούθηση βαθμολογίας'!$C$4:C123,'Παρακολούθηση βαθμολογίας'!C123) -> 0
B153: 121 | C153: ='Παρακολούθηση βαθμολογίας'!C124&COUNTIF('Παρακολούθηση βαθμολογίας'!$C$4:C124,'Παρακολούθηση βαθμολογίας'!C124) -> 0
B154: 122 | C154: ='Παρακολούθηση βαθμολογίας'!C125&COUNTIF('Παρακολούθηση βαθμολογίας'!$C$4:C125,'Παρακολούθηση βαθμολογίας'!C125) -> 0
B155: 123 | C155: ='Παρακολούθηση βαθμολογίας'!C126&COUNTIF('Παρακολούθηση βαθμολογίας'!$C$4:C126,'Παρακολούθηση βαθμολογίας'!C126) -> 0
B156: 124 | C156: ='Παρακολούθηση βαθμολογίας'!C127&COUNTIF('Παρακολούθηση βαθμολογίας'!$C$4:C127,'Παρακολούθηση βαθμολογίας'!C127) -> 0
B157: 125 | C157: ='Παρακολούθηση βαθμολογίας'!C128&COUNTIF('Παρακολούθηση βαθμολογίας'!$C$4:C128,'Παρακολούθηση βαθμολογίας'!C128) -> 0
B158: 126 | C158: ='Παρακολούθηση βαθμολογίας'!C129&COUNTIF('Παρακολούθηση βαθμολογίας'!$C$4:C129,'Παρακολούθηση βαθμολογίας'!C129) -> 0
B159: 127 | C159: ='Παρακολούθηση βαθμολογίας'!C130&COUNTIF('Παρακολούθηση βαθμολογίας'!$C$4:C130,'Παρακολούθηση βαθμολογίας'!C130) -> 0
B160: 128 | C160: ='Παρακολούθηση βαθμολογίας'!C131&COUNTIF('Παρακολούθηση βαθμολογίας'!$C$4:C131,'Παρακολούθηση βαθμολογίας'!C131) -> 0
B161: 129 | C161: ='Παρακολούθηση βαθμολογίας'!C132&COUNTIF('Παρακολούθηση βαθμολογίας'!$C$4:C132,'Παρακολούθηση βαθμολογίας'!C132) -> 0
B162: 130 | C162: ='Παρακολούθηση βαθμολογίας'!C133&COUNTIF('Παρακολούθηση βαθμολογίας'!$C$4:C133,'Παρακολούθηση βαθμολογίας'!C133) -> 0
B163: 131 | C163: ='Παρακολούθηση βαθμολογίας'!C134&COUNTIF('Παρακολούθηση βαθμολογίας'!$C$4:C134,'Παρακολούθηση βαθμολογίας'!C134) -> 0
B164: 132 | C164: ='Παρακολούθηση βαθμολογίας'!C135&COUNTIF('Παρακολούθηση βαθμολογίας'!$C$4:C135,'Παρακολούθηση βαθμολογίας'!C135) -> 0
B165: 133 | C165: ='Παρακολούθηση βαθμολογίας'!C136&COUNTIF('Παρακολούθηση βαθμολογίας'!$C$4:C136,'Παρακολούθηση βαθμολογίας'!C136) -> 0
B166: 134 | C166: ='Παρακολούθηση βαθμολογίας'!C137&COUNTIF('Παρακολούθηση βαθμολογίας'!$C$4:C137,'Παρακολούθηση βαθμολογίας'!C137) -> 0
B167: 135 | C167: ='Παρακολούθηση βαθμολογίας'!C138&COUNTIF('Παρακολούθηση βαθμολογίας'!$C$4:C138,'Παρακολούθηση βαθμολογίας'!C138) -> 0
B168: 136 | C168: ='Παρακολούθηση βαθμολογίας'!C139&COUNTIF('Παρακολούθηση βαθμολογίας'!$C$4:C139,'Παρακολούθηση βαθμολογίας'!C139) -> 0
B169: 137 | C169: ='Παρακολούθηση βαθμολογίας'!C140&COUNTIF('Παρακολούθηση βαθμολογίας'!$C$4:C140,'Παρακολούθηση βαθμολογίας'!C140) -> 0
B170: 138 | C170: ='Παρακολούθηση βαθμολογίας'!C141&COUNTIF('Παρακολούθηση βαθμολογίας'!$C$4:C141,'Παρακολούθηση βαθμολογίας'!C141) -> 0
B171: 139 | C171: ='Παρακολούθηση βαθμολογίας'!C142&COUNTIF('Παρακολούθηση βαθμολογίας'!$C$4:C142,'Παρακολούθηση βαθμολογίας'!C142) -> 0
B172: 140 | C172: ='Παρακολούθηση βαθμολογίας'!C143&COUNTIF('Παρακολούθηση βαθμολογίας'!$C$4:C143,'Παρακολούθηση βαθμολογίας'!C143) -> 0
B173: 141 | C173: ='Παρακολούθηση βαθμολογίας'!C144&COUNTIF('Παρακολούθηση βαθμολογίας'!$C$4:C144,'Παρακολούθηση βαθμολογίας'!C144) -> 0
B174: 142 | C174: ='Παρακολούθηση βαθμολογίας'!C145&COUNTIF('Παρακολούθηση βαθμολογίας'!$C$4:C145,'Παρακολούθηση βαθμολογίας'!C145) -> 0
B175: 143 | C175: ='Παρακολούθηση βαθμολογίας'!C146&COUNTIF('Παρακολούθηση βαθμολογίας'!$C$4:C146,'Παρακολούθηση βαθμολογίας'!C146) -> 0
B176: 144 | C176: ='Παρακολούθηση βαθμολογίας'!C147&COUNTIF('Παρακολούθηση βαθμολογίας'!$C$4:C147,'Παρακολούθηση βαθμολογίας'!C147) -> 0
B177: 145 | C177: ='Παρακολούθηση βαθμολογίας'!C148&COUNTIF('Παρακολούθηση βαθμολογίας'!$C$4:C148,'Παρακολούθηση βαθμολογίας'!C148) -> 0
B178: 146 | C178: ='Παρακολούθηση βαθμολογίας'!C149&COUNTIF('Παρακολούθηση βαθμολογίας'!$C$4:C149,'Παρακολούθηση βαθμολογίας'!C149) -> 0
B179: 147 | C179: ='Παρακολούθηση βαθμολογίας'!C150&COUNTIF('Παρακολούθηση βαθμολογίας'!$C$4:C150,'Παρακολούθηση βαθμολογίας'!C150) -> 0
B180: 148 | C180: ='Παρακολούθηση βαθμολογίας'!C151&COUNTIF('Παρακολούθηση βαθμολογίας'!$C$4:C151,'Παρακολούθηση βαθμολογίας'!C151) -> 0
B181: 149 | C181: ='Παρακολούθηση βαθμολογίας'!C152&COUNTIF('Παρακολούθηση βαθμολογίας'!$C$4:C152,'Παρακολούθηση βαθμολογίας'!C152) -> 0
B182: 150 | C182: ='Παρακολούθηση βαθμολογίας'!C153&COUNTIF('Παρακολούθηση βαθμολογίας'!$C$4:C153,'Παρακολούθηση βαθμολογίας'!C153) -> 0
B183: 151 | C183: ='Παρακολούθηση βαθμολογίας'!C154&COUNTIF('Παρακολούθηση βαθμολογίας'!$C$4:C154,'Παρακολούθηση βαθμολογίας'!C154) -> 0
B184: 152 | C184: ='Παρακολούθηση βαθμολογίας'!C155&COUNTIF('Παρακολούθηση βαθμολογίας'!$C$4:C155,'Παρακολούθηση βαθμολογίας'!C155) -> 0
B185: 153 | C185: ='Παρακολούθηση βαθμολογίας'!C156&COUNTIF('Παρακολούθηση βαθμολογίας'!$C$4:C156,'Παρακολούθηση βαθμολογίας'!C156) -> 0
B186: 154 | C186: ='Παρακολούθηση βαθμολογίας'!C157&COUNTIF('Παρακολούθηση βαθμολογίας'!$C$4:C157,'Παρακολούθηση βαθμολογίας'!C157) -> 0
B187: 155 | C187: ='Παρακολούθηση βαθμολογίας'!C158&COUNTIF('Παρακολούθηση βαθμολογίας'!$C$4:C158,'Παρακολούθηση βαθμολογίας'!C158) -> 0
B188: 156 | C188: ='Παρακολούθηση βαθμολογίας'!C159&COUNTIF('Παρακολούθηση βαθμολογίας'!$C$4:C159,'Παρακολούθηση βαθμολογίας'!C159) -> 0
B189: 157 | C189: ='Παρακολούθηση βαθμολογίας'!C160&COUNTIF('Παρακολούθηση βαθμολογίας'!$C$4:C160,'Παρακολούθηση βαθμολογίας'!C160) -> 0
B190: 158 | C190: ='Παρακολούθηση βαθμολογίας'!C161&COUNTIF('Παρακολούθηση βαθμολογίας'!$C$4:C161,'Παρακολούθηση βαθμολογίας'!C161) -> 0
B191: 159 | C191: ='Παρακολούθηση βαθμολογίας'!C162&COUNTIF('Παρακολούθηση βαθμολογίας'!$C$4:C162,'Παρακολούθηση βαθμολογίας'!C162) -> 0
B192: 160 | C192: ='Παρακολούθηση βαθμολογίας'!C163&COUNTIF('Παρακολούθηση βαθμολογίας'!$C$4:C163,'Παρακολούθηση βαθμολογίας'!C163) -> 0
B193: 161 | C193: ='Παρακολούθηση βαθμολογίας'!C164&COUNTIF('Παρακολούθηση βαθμολογίας'!$C$4:C164,'Παρακολούθηση βαθμολογίας'!C164) -> 0
B194: 162 | C194: ='Παρακολούθηση βαθμολογίας'!C165&COUNTIF('Παρακολούθηση βαθμολογίας'!$C$4:C165,'Παρακολούθηση βαθμολογίας'!C165) -> 0
B195: 163 | C195: ='Παρακολούθηση βαθμολογίας'!C166&COUNTIF('Παρακολούθηση βαθμολογίας'!$C$4:C166,'Παρακολούθηση βαθμολογίας'!C166) -> 0
B196: 164 | C196: ='Παρακολούθηση βαθμολογίας'!C167&COUNTIF('Παρακολούθηση βαθμολογίας'!$C$4:C167,'Παρακολούθηση βαθμολογίας'!C167) -> 0
B197: 165 | C197: ='Παρακολούθηση βαθμολογίας'!C168&COUNTIF('Παρακολούθηση βαθμολογίας'!$C$4:C168,'Παρακολούθηση βαθμολογίας'!C168) -> 0
B198: 166 | C198: ='Παρακολούθηση βαθμολογίας'!C169&COUNTIF('Παρακολούθηση βαθμολογίας'!$C$4:C169,'Παρακολούθηση βαθμολογίας'!C169) -> 0
B199: 167 | C199: ='Παρακολούθηση βαθμολογίας'!C170&COUNTIF('Παρακολούθηση βαθμολογίας'!$C$4:C170,'Παρακολούθηση βαθμολογίας'!C170) -> 0
B200: 168 | C200: ='Παρακολούθηση βαθμολογίας'!C171&COUNTIF('Παρακολούθηση βαθμολογίας'!$C$4:C171,'Παρακολούθηση βαθμολογίας'!C171) -> 0
B201: 169 | C201: ='Παρακολούθηση βαθμολογίας'!C172&COUNTIF('Παρακολούθηση βαθμολογίας'!$C$4:C172,'Παρακολούθηση βαθμολογίας'!C172) -> 0
B202: 170 | C202: ='Παρακολούθηση βαθμολογίας'!C173&COUNTIF('Παρακολούθηση βαθμολογίας'!$C$4:C173,'Παρακολούθηση βαθμολογίας'!C173) -> 0
B203: 171 | C203: ='Παρακολούθηση βαθμολογίας'!C174&COUNTIF('Παρακολούθηση βαθμολογίας'!$C$4:C174,'Παρακολούθηση βαθμολογίας'!C174) -> 0
... 454 more rows
